Workbook

Sheet Helhedsplan
K1: Boligorganisationen X-bo | X1: [ Eksempel på budgetoverslag ]
B2: Jnr: | C2: 1053XX | J2: 001 - afd. 1, X-bogård - Helhedsplan - Til drøftelse med LBF | P2: 180 etageboliger
B3: Dato: 25.10.2021/SKJ | AK3: Støttede arbejder | AY3: Ustøttede arbejder
B4: Kalkulationsindeks: 109,3 (2. kvartal / 2021) - Alle priser inkl. moms. | I4: Helhedsplan etape 1 | AB4: Opdeling af nødvendige ustøttede arbejder | AK4: =SUM(AK7:AK462) -> 6131587.5 | AL4: 1965580 | AM4: 469670 | AN4: 1098000 | AO4: 0 | AP4: 2100000 | AQ4: 1417500 | AR4: 0 | AS4: 9730010 | AT4: 10291250 | AU4: 550000 | AV4: =SUM(AK4:AU4) -> 33753597.5 | AY4: =SUM(AY7:AY462) -> 4650912.5 | AZ4: 3366920 | BA4: 4629330 | BB4: 9000000 | BC4: 0 | BD4: 3400000 | BE4: 9022500 | BF4: 0 | BG4: 12814455 | BH4: 22293750 | BI4: 1660000 | BJ4: =SUM(AY4:BI4) -> 70837867.5
A5: BSF | C5: GRÅ FELTER UDFYLDES | D5: Enh. | E5: Antal | F5: Enh. pris | G5: Total | I5: Opretning | K5: Fællesarealer | M5: Ombygning / | O5: Tilgængelighed | Q5: Modernisering | S5: Vedligeholdelse | U5: Nødvendlige ustøttede arbejder | AB5: Opretning | AD5: Fællesarealer | AF5: Ombygning / | AH5: Tilgængelighed | AK5: BSF-håndværkerudgifter | AY5: BSF-håndværkerudgifter
F6: inkl. moms | G6: inkl. moms | M6: Sammenlægn. | V6: (automatisk) | AC6: =SUM(AC7:AC176) -> 6269750 | AE6: =SUM(AE7:AE176) -> 0 | AF6: Sammenlægn. | AG6: =SUM(AG7:AG176) -> 522720 | AI6: =SUM(AI7:AI176) -> 1961520 | AK6: 1 | AL6: 2 | AM6: 3 | AN6: 4 | AO6: 5 | AP6: 6 | AQ6: 7 | AR6: 8 | AS6: 9 | AT6: 10 | AU6: 11 | AY6: 1 | AZ6: 2 | BA6: 3 | BB6: 4 | BC6: 5 | BD6: 6 | BE6: 7 | BF6: 8 | BG6: 9 | BH6: 10 | BI6: 11
B8: 1 | C8: Tag | G8: =I8+K8+M8+O8+Q8+S8+U8 -> 0 | H8: =E8*F8 -> 0 | J8: =IF(I8=0,0,SUM($H8*I8)) -> 0 | L8: =IF(K8=0,0,SUM($H8*K8)) -> 0 | N8: =IF(M8=0,0,SUM($H8*M8)) -> 0 | P8: =IF(O8=0,0,SUM($H8*O8)) -> 0 | R8: =IF(Q8=0,0,SUM($H8*Q8)) -> 0 | T8: =IF(S8=0,0,SUM($H8*S8)) -> 0 | V8: =IF(S8+Q8>0.5,0,IF(Q8<0.51,IF(S8<0.51,+R8+T8,+R8),IF(S8<0.51,T8,0))) -> 0 | AB8: =IF(J8>0,IF($V8>0,$V8,0),0) -> 0 | AC8: =IF(($AB8+$AD8+$AF8+$AH8)>($V8+1),AB8/2,AB8) -> 0 | AD8: =IF(L8>0,IF($V8>0,$V8,0),0) -> 0 | AE8: =IF(($AB8+$AD8+$AF8+$AH8)>($V8+1),AD8/2,AD8) -> 0 | AF8: =IF(N8>0,IF($V8>0,$V8,0),0) -> 0 | AG8: =IF(($AB8+$AD8+$AF8+$AH8)>($V8+1),AF8/2,AF8) -> 0 | AH8: =IF(P8>0,IF($V8>0,$V8,0),0) -> 0 | AI8: =IF(($AB8+$AD8+$AF8+$AH8)>($V8+1),AH8/2,AH8) -> 0
A9: 1 | C9: Ny tagbelægning | D9: m2 | E9: 10500 | F9: 650 | G9: =I9+K9+M9+O9+Q9+S9+U9 -> 1 | H9: =E9*F9 -> 6825000 | I9: 0.5 | J9: =IF(I9=0,0,SUM($H9*I9)) -> 3412500 | L9: =IF(K9=0,0,SUM($H9*K9)) -> 0 | N9: =IF(M9=0,0,SUM($H9*M9)) -> 0 | P9: =IF(O9=0,0,SUM($H9*O9)) -> 0 | R9: =IF(Q9=0,0,SUM($H9*Q9)) -> 0 | S9: 0.5 | T9: =IF(S9=0,0,SUM($H9*S9)) -> 3412500 | V9: =IF(S9+Q9>0.5,0,IF(Q9<0.51,IF(S9<0.51,+R9+T9,+R9),IF(S9<0.51,T9,0))) -> 3412500 | AB9: =IF(J9>0,IF($V9>0,$V9,0),0) -> 3412500 | AC9: =IF(($AB9+$AD9+$AF9+$AH9)>($V9+1),AB9/2,AB9) -> 3412500 | AD9: =IF(L9>0,IF($V9>0,$V9,0),0) -> 0 | AE9: =IF(($AB9+$AD9+$AF9+$AH9)>($V9+1),AD9/2,AD9) -> 0 | AF9: =IF(N9>0,IF($V9>0,$V9,0),0) -> 0 | AG9: =IF(($AB9+$AD9+$AF9+$AH9)>($V9+1),AF9/2,AF9) -> 0 | AH9: =IF(P9>0,IF($V9>0,$V9,0),0) -> 0 | AI9: =IF(($AB9+$AD9+$AF9+$AH9)>($V9+1),AH9/2,AH9) -> 0 | AK9: =IF($A9=AK$6,+$J9+$L9+$N9+$P9,"") -> 3412500 | AL9: =IF($A9=AL$6,+$J9+$L9+$N9+$P9,"") ->  | AM9: =IF($A9=AM$6,+$J9+$L9+$N9+$P9,"") ->  | AY9: =IF($A9=AY$6,+$R9+$T9,"") -> 3412500 | AZ9: =IF($A9=AZ$6,+$R9+$T9,"") ->  | BA9: =IF($A9=BA$6,+$R9+$T9,"") -> 
A10: 1 | C10: Renovering af tagkonstruktion | D10: m2 | E10: 10500 | F10: 215 | G10: 1 | H10: =E10*F10 -> 2257500 | I10: 1 | J10: 2257500 | L10: 0 | N10: 0 | P10: 0 | R10: 0 | T10: 0 | V10: 0 | AB10: 0 | AC10: 0 | AD10: 0 | AE10: 0 | AF10: 0 | AG10: 0 | AH10: 0 | AI10: 0 | AK10: =IF($A10=AK$6,+$J10+$L10+$N10+$P10,"") -> 2257500 | AL10: =IF($A10=AL$6,+$J10+$L10+$N10+$P10,"") ->  | AY10: =IF($A10=AY$6,+$R10+$T10,"") -> 0
A11: 1 | C11: Tagrender og nedløb | D11: m2 | E11: 3730 | F11: 375 | G11: 1 | H11: 1398750 | I11: 0.33 | J11: 461587.5 | L11: 0 | N11: 0 | P11: 0 | R11: 0 | S11: 0.67 | T11: 937162.5 | V11: 0 | AB11: 0 | AC11: 0 | AD11: 0 | AE11: 0 | AF11: 0 | AG11: 0 | AH11: 0 | AI11: 0 | AK11: 461587.5 | AY11: 937162.5
A12: 1 | C12: Brandkamsforbedring | D12: stk. | E12: 8 | F12: 15000 | G12: 1 | H12: 120000 | J12: 0 | L12: 0 | N12: 0 | P12: 0 | Q12: 0.75 | R12: 90000 | S12: 0.25 | T12: 30000 | V12: 0 | AB12: 0 | AC12: 0 | AD12: 0 | AE12: 0 | AF12: 0 | AG12: 0 | AH12: 0 | AI12: 0 | AK12: 0 | AY12: 120000
G13: 0 | H13: 0 | J13: 0 | L13: 0 | N13: 0 | P13: 0 | R13: 0 | T13: 0 | V13: 0 | AB13: 0 | AC13: 0 | AD13: 0 | AE13: 0 | AF13: 0 | AG13: 0 | AH13: 0 | AI13: 0
G14: =IFERROR(I14+K14+M14+O14+Q14+S14+U14,0) -> 1 | H14: =SUM(H8:H13) -> 10601250 | I14: =J14/$H14 -> 0.5783834453 | J14: =SUM(J8:J13) -> 6131587.5 | K14: =L14/$H14 -> 0 | L14: =SUM(L8:L13) -> 0 | M14: =N14/$H14 -> 0 | N14: =SUM(N8:N13) -> 0 | O14: =P14/$H14 -> 0 | P14: =SUM(P8:P13) -> 0 | Q14: =R14/$H14 -> 0.00848956491 | R14: =SUM(R8:R13) -> 90000 | S14: =T14/$H14 -> 0.4131269897 | T14: =SUM(T8:T13) -> 4379662.5 | V14: =SUM(V8:V13) -> 3412500
B16: 2 | C16: Facade | G16: =I16+K16+M16+O16+Q16+S16+U16 -> 0 | H16: =E16*F16 -> 0 | J16: =IF(I16=0,0,SUM($H16*I16)) -> 0 | L16: =IF(K16=0,0,SUM($H16*K16)) -> 0 | N16: =IF(M16=0,0,SUM($H16*M16)) -> 0 | P16: =IF(O16=0,0,SUM($H16*O16)) -> 0 | R16: =IF(Q16=0,0,SUM($H16*Q16)) -> 0 | T16: =IF(S16=0,0,SUM($H16*S16)) -> 0 | V16: =IF(S16+Q16>0.5,0,IF(Q16<0.51,IF(S16<0.51,+R16+T16,+R16),IF(S16<0.51,T16,0))) -> 0 | AB16: =IF(J16>0,IF($V16>0,$V16,0),0) -> 0 | AC16: =IF(($AB16+$AD16+$AF16+$AH16)>($V16+1),AB16/2,AB16) -> 0 | AD16: =IF(L16>0,IF($V16>0,$V16,0),0) -> 0 | AE16: =IF(($AB16+$AD16+$AF16+$AH16)>($V16+1),AD16/2,AD16) -> 0 | AF16: =IF(N16>0,IF($V16>0,$V16,0),0) -> 0 | AG16: =IF(($AB16+$AD16+$AF16+$AH16)>($V16+1),AF16/2,AF16) -> 0 | AH16: =IF(P16>0,IF($V16>0,$V16,0),0) -> 0 | AI16: =IF(($AB16+$AD16+$AF16+$AH16)>($V16+1),AH16/2,AH16) -> 0 | AK16: =IF($A16=AK$6,+$J16+$L16+$N16+$P16,"") ->  | AL16: =IF($A16=AL$6,+$J16+$L16+$N16+$P16,"") ->  | AY16: =IF($A16=AY$6,+$R16+$T16,"") -> 
A17: 2 | C17: Efterfugning af facader | D17: m2 | E17: 2000 | F17: 1000 | G17: =I17+K17+M17+O17+Q17+S17+U17 -> 1 | H17: =E17*F17 -> 2000000 | J17: =IF(I17=0,0,SUM($H17*I17)) -> 0 | L17: =IF(K17=0,0,SUM($H17*K17)) -> 0 | N17: =IF(M17=0,0,SUM($H17*M17)) -> 0 | P17: =IF(O17=0,0,SUM($H17*O17)) -> 0 | Q17: 1 | R17: =IF(Q17=0,0,SUM($H17*Q17)) -> 2000000 | T17: =IF(S17=0,0,SUM($H17*S17)) -> 0 | V17: =IF(S17+Q17>0.5,0,IF(Q17<0.51,IF(S17<0.51,+R17+T17,+R17),IF(S17<0.51,T17,0))) -> 0 | AB17: =IF(J17>0,IF($V17>0,$V17,0),0) -> 0 | AC17: =IF(($AB17+$AD17+$AF17+$AH17)>($V17+1),AB17/2,AB17) -> 0 | AD17: =IF(L17>0,IF($V17>0,$V17,0),0) -> 0 | AE17: =IF(($AB17+$AD17+$AF17+$AH17)>($V17+1),AD17/2,AD17) -> 0 | AF17: =IF(N17>0,IF($V17>0,$V17,0),0) -> 0 | AG17: =IF(($AB17+$AD17+$AF17+$AH17)>($V17+1),AF17/2,AF17) -> 0 | AH17: =IF(P17>0,IF($V17>0,$V17,0),0) -> 0 | AI17: =IF(($AB17+$AD17+$AF17+$AH17)>($V17+1),AH17/2,AH17) -> 0 | AL17: 0 | AZ17: 2000000
A18: 2 | C18: Fjernelse af indvendig gavlefterisolering | D18: m2 | E18: 192 | F18: 1500 | G18: =I18+K18+M18+O18+Q18+S18+U18 -> 1 | H18: 288000 | I18: 1 | J18: 288000 | L18: 0 | N18: 0 | P18: 0 | R18: 0 | T18: 0 | V18: 0 | AB18: 0 | AC18: 0 | AD18: 0 | AE18: 0 | AF18: 0 | AG18: 0 | AH18: 0 | AI18: 0 | AL18: 288000 | AZ18: 0
A19: 2 | C19: Nye gavle ( skalmur + isolering mv.) | D19: m2 | E19: 230 | F19: 4100 | G19: 1 | H19: =E19*F19 -> 943000 | I19: 1 | J19: =IF(I19=0,0,SUM($H19*I19)) -> 943000 | L19: =IF(K19=0,0,SUM($H19*K19)) -> 0 | N19: =IF(M19=0,0,SUM($H19*M19)) -> 0 | P19: =IF(O19=0,0,SUM($H19*O19)) -> 0 | R19: =IF(Q19=0,0,SUM($H19*Q19)) -> 0 | T19: =IF(S19=0,0,SUM($H19*S19)) -> 0 | V19: =IF(S19+Q19>0.5,0,IF(Q19<0.51,IF(S19<0.51,+R19+T19,+R19),IF(S19<0.51,T19,0))) -> 0 | AB19: =IF(J19>0,IF($V19>0,$V19,0),0) -> 0 | AC19: =IF(($AB19+$AD19+$AF19+$AH19)>($V19+1),AB19/2,AB19) -> 0 | AD19: =IF(L19>0,IF($V19>0,$V19,0),0) -> 0 | AE19: =IF(($AB19+$AD19+$AF19+$AH19)>($V19+1),AD19/2,AD19) -> 0 | AF19: =IF(N19>0,IF($V19>0,$V19,0),0) -> 0 | AG19: =IF(($AB19+$AD19+$AF19+$AH19)>($V19+1),AF19/2,AF19) -> 0 | AH19: =IF(P19>0,IF($V19>0,$V19,0),0) -> 0 | AI19: =IF(($AB19+$AD19+$AF19+$AH19)>($V19+1),AH19/2,AH19) -> 0 | AL19: 943000 | AZ19: 0
A20: 2 | C20: Sålbænke og muroverliggere | D20: stk. | E20: 115 | F20: 4500 | G20: =I20+K20+M20+O20+Q20+S20+U20 -> 1 | H20: 517500 | I20: 1 | J20: 517500 | L20: 0 | N20: 0 | P20: 0 | R20: 0 | T20: 0 | V20: 0 | AB20: 0 | AC20: 0 | AD20: 0 | AE20: 0 | AF20: 0 | AG20: 0 | AH20: 0 | AI20: 0 | AL20: 517500 | AZ20: 0
G21: 0 | H21: 0 | J21: 0 | L21: 0 | N21: 0 | P21: 0 | R21: 0 | T21: 0 | V21: 0 | AB21: 0 | AC21: 0 | AD21: 0 | AE21: 0 | AF21: 0 | AG21: 0 | AH21: 0 | AI21: 0
G22: =IFERROR(I22+K22+M22+O22+Q22+S22+U22,0) -> 1 | H22: =SUM(H16:H21) -> 3748500 | I22: =J22/$H22 -> 0.466453248 | J22: =SUM(J16:J21) -> 1748500 | K22: =L22/$H22 -> 0 | L22: =SUM(L16:L21) -> 0 | M22: =N22/$H22 -> 0 | N22: =SUM(N16:N21) -> 0 | O22: =P22/$H22 -> 0 | P22: =SUM(P16:P21) -> 0 | Q22: =R22/$H22 -> 0.533546752 | R22: =SUM(R16:R21) -> 2000000 | S22: =T22/$H22 -> 0 | T22: =SUM(T16:T21) -> 0 | V22: =SUM(V16:V21) -> 0
B24: 3 | C24: Kælder | G24: =I24+K24+M24+O24+Q24+S24+U24 -> 0 | H24: =E24*F24 -> 0 | J24: =IF(I24=0,0,SUM($H24*I24)) -> 0 | L24: =IF(K24=0,0,SUM($H24*K24)) -> 0 | N24: =IF(M24=0,0,SUM($H24*M24)) -> 0 | P24: =IF(O24=0,0,SUM($H24*O24)) -> 0 | R24: =IF(Q24=0,0,SUM($H24*Q24)) -> 0 | T24: =IF(S24=0,0,SUM($H24*S24)) -> 0 | V24: =IF(S24+Q24>0.5,0,IF(Q24<0.51,IF(S24<0.51,+R24+T24,+R24),IF(S24<0.51,T24,0))) -> 0 | AB24: =IF(J24>0,IF($V24>0,$V24,0),0) -> 0 | AC24: =IF(($AB24+$AD24+$AF24+$AH24)>($V24+1),AB24/2,AB24) -> 0 | AD24: =IF(L24>0,IF($V24>0,$V24,0),0) -> 0 | AE24: =IF(($AB24+$AD24+$AF24+$AH24)>($V24+1),AD24/2,AD24) -> 0 | AF24: =IF(N24>0,IF($V24>0,$V24,0),0) -> 0 | AG24: =IF(($AB24+$AD24+$AF24+$AH24)>($V24+1),AF24/2,AF24) -> 0 | AH24: =IF(P24>0,IF($V24>0,$V24,0),0) -> 0 | AI24: =IF(($AB24+$AD24+$AF24+$AH24)>($V24+1),AH24/2,AH24) -> 0 | AK24: =IF($A24=AK$6,+$J24+$L24+$N24+$P24,"") ->  | AL24: =IF($A24=AL$6,+$J24+$L24+$N24+$P24,"") ->  | AY24: =IF($A24=AY$6,+$R24+$T24,"") -> 
A25: 6 | C25: Renovering af kælderindervæg | E25: 1 | F25: 3000000 | G25: =I25+K25+M25+O25+Q25+S25+U25 -> 1 | H25: =E25*F25 -> 3000000 | J25: =IF(I25=0,0,SUM($H25*I25)) -> 0 | L25: =IF(K25=0,0,SUM($H25*K25)) -> 0 | N25: =IF(M25=0,0,SUM($H25*M25)) -> 0 | P25: =IF(O25=0,0,SUM($H25*O25)) -> 0 | R25: =IF(Q25=0,0,SUM($H25*Q25)) -> 0 | S25: 1 | T25: =IF(S25=0,0,SUM($H25*S25)) -> 3000000 | V25: =IF(S25+Q25>0.5,0,IF(Q25<0.51,IF(S25<0.51,+R25+T25,+R25),IF(S25<0.51,T25,0))) -> 0 | AB25: =IF(J25>0,IF($V25>0,$V25,0),0) -> 0 | AC25: =IF(($AB25+$AD25+$AF25+$AH25)>($V25+1),AB25/2,AB25) -> 0 | AD25: =IF(L25>0,IF($V25>0,$V25,0),0) -> 0 | AE25: =IF(($AB25+$AD25+$AF25+$AH25)>($V25+1),AD25/2,AD25) -> 0 | AF25: =IF(N25>0,IF($V25>0,$V25,0),0) -> 0 | AG25: =IF(($AB25+$AD25+$AF25+$AH25)>($V25+1),AF25/2,AF25) -> 0 | AH25: =IF(P25>0,IF($V25>0,$V25,0),0) -> 0 | AI25: =IF(($AB25+$AD25+$AF25+$AH25)>($V25+1),AH25/2,AH25) -> 0 | AK25: =IF($A25=AK$6,+$J25+$L25+$N25+$P25,"") ->  | AP25: 0 | BD25: 3000000
A26: 6 | C26: Kældertapper (udvendig) | E26: 5 | F26: 80000 | G26: =I26+K26+M26+O26+Q26+S26+U26 -> 1 | H26: =E26*F26 -> 400000 | J26: =IF(I26=0,0,SUM($H26*I26)) -> 0 | L26: =IF(K26=0,0,SUM($H26*K26)) -> 0 | N26: =IF(M26=0,0,SUM($H26*M26)) -> 0 | P26: =IF(O26=0,0,SUM($H26*O26)) -> 0 | Q26: 0.5 | R26: =IF(Q26=0,0,SUM($H26*Q26)) -> 200000 | S26: 0.5 | T26: =IF(S26=0,0,SUM($H26*S26)) -> 200000 | V26: =IF(S26+Q26>0.5,0,IF(Q26<0.51,IF(S26<0.51,+R26+T26,+R26),IF(S26<0.51,T26,0))) -> 0 | AB26: =IF(J26>0,IF($V26>0,$V26,0),0) -> 0 | AC26: =IF(($AB26+$AD26+$AF26+$AH26)>($V26+1),AB26/2,AB26) -> 0 | AD26: =IF(L26>0,IF($V26>0,$V26,0),0) -> 0 | AE26: =IF(($AB26+$AD26+$AF26+$AH26)>($V26+1),AD26/2,AD26) -> 0 | AF26: =IF(N26>0,IF($V26>0,$V26,0),0) -> 0 | AG26: =IF(($AB26+$AD26+$AF26+$AH26)>($V26+1),AF26/2,AF26) -> 0 | AH26: =IF(P26>0,IF($V26>0,$V26,0),0) -> 0 | AI26: =IF(($AB26+$AD26+$AF26+$AH26)>($V26+1),AH26/2,AH26) -> 0 | AK26: =IF($A26=AK$6,+$J26+$L26+$N26+$P26,"") ->  | AP26: 0 | BD26: 400000
G27: =I27+K27+M27+O27+Q27+S27+U27 -> 0 | H27: =E27*F27 -> 0 | J27: =IF(I27=0,0,SUM($H27*I27)) -> 0 | L27: =IF(K27=0,0,SUM($H27*K27)) -> 0 | N27: =IF(M27=0,0,SUM($H27*M27)) -> 0 | P27: =IF(O27=0,0,SUM($H27*O27)) -> 0 | R27: =IF(Q27=0,0,SUM($H27*Q27)) -> 0 | T27: =IF(S27=0,0,SUM($H27*S27)) -> 0 | V27: =IF(S27+Q27>0.5,0,IF(Q27<0.51,IF(S27<0.51,+R27+T27,+R27),IF(S27<0.51,T27,0))) -> 0 | AB27: =IF(J27>0,IF($V27>0,$V27,0),0) -> 0 | AC27: =IF(($AB27+$AD27+$AF27+$AH27)>($V27+1),AB27/2,AB27) -> 0 | AD27: =IF(L27>0,IF($V27>0,$V27,0),0) -> 0 | AE27: =IF(($AB27+$AD27+$AF27+$AH27)>($V27+1),AD27/2,AD27) -> 0 | AF27: =IF(N27>0,IF($V27>0,$V27,0),0) -> 0 | AG27: =IF(($AB27+$AD27+$AF27+$AH27)>($V27+1),AF27/2,AF27) -> 0 | AH27: =IF(P27>0,IF($V27>0,$V27,0),0) -> 0 | AI27: =IF(($AB27+$AD27+$AF27+$AH27)>($V27+1),AH27/2,AH27) -> 0 | AK27: =IF($A27=AK$6,+$J27+$L27+$N27+$P27,"") -> 
G28: =IFERROR(I28+K28+M28+O28+Q28+S28+U28,0) -> 1 | H28: =SUM(H24:H27) -> 3400000 | I28: =J28/$H28 -> 0 | J28: =SUM(J24:J27) -> 0 | K28: =L28/$H28 -> 0 | L28: =SUM(L24:L27) -> 0 | M28: =N28/$H28 -> 0 | N28: =SUM(N24:N27) -> 0 | O28: =P28/$H28 -> 0 | P28: =SUM(P24:P27) -> 0 | Q28: =R28/$H28 -> 0.05882352941 | R28: =SUM(R24:R27) -> 200000 | S28: =T28/$H28 -> 0.9411764706 | T28: =SUM(T24:T27) -> 3200000 | V28: =SUM(V24:V27) -> 0
B30: 4 | C30: Indv. Trappe / opgang | G30: =I30+K30+M30+O30+Q30+S30+U30 -> 0 | H30: =E30*F30 -> 0 | J30: =IF(I30=0,0,SUM($H30*I30)) -> 0 | L30: =IF(K30=0,0,SUM($H30*K30)) -> 0 | N30: =IF(M30=0,0,SUM($H30*M30)) -> 0 | P30: =IF(O30=0,0,SUM($H30*O30)) -> 0 | R30: =IF(Q30=0,0,SUM($H30*Q30)) -> 0 | T30: =IF(S30=0,0,SUM($H30*S30)) -> 0 | V30: =IF(S30+Q30>0.5,0,IF(Q30<0.51,IF(S30<0.51,+R30+T30,+R30),IF(S30<0.51,T30,0))) -> 0 | AB30: =IF(J30>0,IF($V30>0,$V30,0),0) -> 0 | AC30: =IF(($AB30+$AD30+$AF30+$AH30)>($V30+1),AB30/2,AB30) -> 0 | AD30: =IF(L30>0,IF($V30>0,$V30,0),0) -> 0 | AE30: =IF(($AB30+$AD30+$AF30+$AH30)>($V30+1),AD30/2,AD30) -> 0 | AF30: =IF(N30>0,IF($V30>0,$V30,0),0) -> 0 | AG30: =IF(($AB30+$AD30+$AF30+$AH30)>($V30+1),AF30/2,AF30) -> 0 | AH30: =IF(P30>0,IF($V30>0,$V30,0),0) -> 0 | AI30: =IF(($AB30+$AD30+$AF30+$AH30)>($V30+1),AH30/2,AH30) -> 0 | AK30: =IF($A30=AK$6,+$J30+$L30+$N30+$P30,"") ->  | AL30: =IF($A30=AL$6,+$J30+$L30+$N30+$P30,"") ->  | AY30: =IF($A30=AY$6,+$R30+$T30,"") -> 
A31: 10 | C31: Maling af opgang | D31: stk. | E31: 29 | F31: 55000 | G31: 1 | H31: 1595000 | J31: 0 | L31: 0 | N31: 0 | P31: 0 | R31: 0 | S31: 1 | T31: 1595000 | V31: 0 | AB31: 0 | AC31: 0 | AD31: 0 | AE31: 0 | AF31: 0 | AG31: 0 | AH31: 0 | AI31: 0 | AT31: 0 | BH31: 1595000
A32: 9 | C32: Belysning | D32: stk. | E32: 29 | F32: 12000 | G32: 1 | H32: 348000 | J32: 0 | L32: 0 | N32: 0 | P32: 0 | Q32: 0.75 | R32: 261000 | S32: 0.25 | T32: 87000 | V32: 0 | AB32: 0 | AC32: 0 | AD32: 0 | AE32: 0 | AF32: 0 | AG32: 0 | AH32: 0 | AI32: 0 | AS32: 0 | BG32: 348000
A33: 1 | C33: Udskiftning af loftlem | D33: stk. | E33: 29 | F33: 6250 | G33: 1 | H33: 181250 | J33: 0 | L33: 0 | N33: 0 | P33: 0 | Q33: 0.5 | R33: 90625 | S33: 0.5 | T33: 90625 | V33: 0 | AB33: 0 | AC33: 0 | AD33: 0 | AE33: 0 | AF33: 0 | AG33: 0 | AH33: 0 | AI33: 0 | AK33: 0 | AY33: 181250
A34: 3 | C34: Udskiftning af vinduer | D34: stk. | E34: 145 | F34: 6000 | G34: 1 | H34: 870000 | J34: 0 | L34: 0 | N34: 0 | P34: 0 | Q34: 0.25 | R34: 217500 | S34: 0.75 | T34: 652500 | V34: 0 | AB34: 0 | AC34: 0 | AD34: 0 | AE34: 0 | AF34: 0 | AG34: 0 | AH34: 0 | AI34: 0 | AM34: 0 | BA34: 870000
G35: 0 | H35: 0 | J35: 0 | L35: 0 | N35: 0 | P35: 0 | R35: 0 | T35: 0 | V35: 0 | AB35: 0 | AC35: 0 | AD35: 0 | AE35: 0 | AF35: 0 | AG35: 0 | AH35: 0 | AI35: 0
G36: =IFERROR(I36+K36+M36+O36+Q36+S36+U36,0) -> 1 | H36: =SUM(H30:H35) -> 2994250 | I36: =J36/$H36 -> 0 | J36: =SUM(J30:J35) -> 0 | K36: =L36/$H36 -> 0 | L36: =SUM(L30:L35) -> 0 | M36: =N36/$H36 -> 0 | N36: =SUM(N30:N35) -> 0 | O36: =P36/$H36 -> 0 | P36: =SUM(P30:P35) -> 0 | Q36: =R36/$H36 -> 0.1900726392 | R36: =SUM(R30:R35) -> 569125 | S36: =T36/$H36 -> 0.8099273608 | T36: =SUM(T30:T35) -> 2425125 | V36: =SUM(V30:V35) -> 0
B38: 5 | C38: Boliger med tilgængelighed - 20 stk. | G38: =I38+K38+M38+O38+Q38+S38+U38 -> 0 | H38: =E38*F38 -> 0 | J38: =IF(I38=0,0,SUM($H38*I38)) -> 0 | L38: =IF(K38=0,0,SUM($H38*K38)) -> 0 | N38: =IF(M38=0,0,SUM($H38*M38)) -> 0 | P38: =IF(O38=0,0,SUM($H38*O38)) -> 0 | R38: =IF(Q38=0,0,SUM($H38*Q38)) -> 0 | T38: =IF(S38=0,0,SUM($H38*S38)) -> 0 | V38: =IF(S38+Q38>0.5,0,IF(Q38<0.51,IF(S38<0.51,+R38+T38,+R38),IF(S38<0.51,T38,0))) -> 0 | AB38: =IF(J38>0,IF($V38>0,$V38,0),0) -> 0 | AC38: =IF(($AB38+$AD38+$AF38+$AH38)>($V38+1),AB38/2,AB38) -> 0 | AD38: =IF(L38>0,IF($V38>0,$V38,0),0) -> 0 | AE38: =IF(($AB38+$AD38+$AF38+$AH38)>($V38+1),AD38/2,AD38) -> 0 | AF38: =IF(N38>0,IF($V38>0,$V38,0),0) -> 0 | AG38: =IF(($AB38+$AD38+$AF38+$AH38)>($V38+1),AF38/2,AF38) -> 0 | AH38: =IF(P38>0,IF($V38>0,$V38,0),0) -> 0 | AI38: =IF(($AB38+$AD38+$AF38+$AH38)>($V38+1),AH38/2,AH38) -> 0 | AK38: =IF($A38=AK$6,+$J38+$L38+$N38+$P38,"") ->  | AL38: =IF($A38=AL$6,+$J38+$L38+$N38+$P38,"") ->  | AY38: =IF($A38=AY$6,+$R38+$T38,"") -> 
G39: 0 | H39: 0 | J39: 0 | L39: 0 | N39: 0 | P39: 0 | R39: 0 | T39: 0 | V39: 0 | AB39: 0 | AC39: 0 | AD39: 0 | AE39: 0 | AF39: 0 | AG39: 0 | AH39: 0 | AI39: 0
C40: Type: T1 (Tilgængelihed) | G40: 0 | H40: 0 | J40: 0 | L40: 0 | N40: 0 | P40: 0 | R40: 0 | T40: 0 | V40: 0 | AB40: 0 | AC40: 0 | AD40: 0 | AE40: 0 | AF40: 0 | AG40: 0 | AH40: 0 | AI40: 0
A41: 7 | C41: Bad | D41: stk. | E41: 8 | F41: 72000 | G41: 1 | H41: 576000 | I41: 0.75 | J41: 432000 | L41: 0 | M41: 0 | N41: 0 | O41: 0 | P41: 0 | Q41: 0.25 | R41: 144000 | T41: 0 | V41: 144000 | AB41: 144000 | AC41: 144000 | AD41: 0 | AE41: 0 | AF41: 0 | AG41: 0 | AH41: 0 | AI41: 0 | AQ41: 432000 | BE41: 144000
A42: 10 | C42: Ombygning (Stue/Gang/køkken mv) | D42: stk. | E42: 8 | F42: 170000 | G42: 1 | H42: 1360000 | J42: 0 | L42: 0 | M42: 0 | N42: 0 | O42: 0.67 | P42: 911200 | Q42: 0.33 | R42: 448800 | T42: 0 | V42: 448800 | AB42: 0 | AC42: 0 | AD42: 0 | AE42: 0 | AF42: 0 | AG42: 0 | AH42: 448800 | AI42: 448800 | AT42: 911200 | BH42: 448800
A43: 3 | C43: Vinduer og døre | D43: stk. | E43: 8 | F43: 25000 | G43: 1 | H43: 200000 | J43: 0 | L43: 0 | M43: 0 | N43: 0 | O43: 0.67 | P43: 134000 | Q43: 0.33 | R43: 66000 | T43: 0 | V43: 66000 | AB43: 0 | AC43: 0 | AD43: 0 | AE43: 0 | AF43: 0 | AG43: 0 | AH43: 66000 | AI43: 66000 | AM43: 134000 | BA43: 66000
A44: 2 | C44: Nyt facade parti | D44: stk. | E44: 8 | F44: 18000 | G44: 1 | H44: 144000 | J44: 0 | L44: 0 | M44: 0 | N44: 0 | O44: 0.67 | P44: 96480 | Q44: 0.33 | R44: 47520 | T44: 0 | V44: 47520 | AB44: 0 | AC44: 0 | AD44: 0 | AE44: 0 | AF44: 0 | AG44: 0 | AH44: 47520 | AI44: 47520 | AL44: 96480 | AZ44: 47520
A45: 9 | C45: EL-Installationer | D45: stk. | E45: 8 | F45: 25000 | G45: 1 | H45: 200000 | J45: 0 | L45: 0 | M45: 0 | N45: 0 | O45: 0.67 | P45: 134000 | Q45: 0.33 | R45: 66000 | T45: 0 | V45: 66000 | AB45: 0 | AC45: 0 | AD45: 0 | AE45: 0 | AF45: 0 | AG45: 0 | AH45: 66000 | AI45: 66000 | AS45: 134000 | BG45: 66000
A46: 9 | C46: Vand og varme | D46: stk. | E46: 8 | F46: 24000 | G46: 1 | H46: 192000 | J46: 0 | L46: 0 | M46: 0 | N46: 0 | O46: 0.67 | P46: 128640 | Q46: 0.33 | R46: 63360 | T46: 0 | V46: 63360 | AB46: 0 | AC46: 0 | AD46: 0 | AE46: 0 | AF46: 0 | AG46: 0 | AH46: 63360 | AI46: 63360 | AS46: 128640 | BG46: 63360
A47: 9 | C47: Afløb | D47: stk. | E47: 8 | F47: 12000 | G47: 1 | H47: 96000 | J47: 0 | L47: 0 | M47: 0 | N47: 0 | O47: 0.67 | P47: 64320 | Q47: 0.33 | R47: 31680 | T47: 0 | V47: 31680 | AB47: 0 | AC47: 0 | AD47: 0 | AE47: 0 | AF47: 0 | AG47: 0 | AH47: 31680 | AI47: 31680 | AS47: 64320 | BG47: 31680
A48: 4 | C48: Altaner (udvidelse støttes) | D48: stk. | E48: 8 | F48: 75000 | G48: 0.33 | H48: 600000 | J48: 0 | L48: 0 | N48: 0 | O48: 0.33 | P48: 198000 | R48: 0 | T48: 0 | V48: 0 | AB48: 0 | AC48: 0 | AD48: 0 | AE48: 0 | AF48: 0 | AG48: 0 | AH48: 0 | AI48: 0 | AN48: 198000 | BB48: 0
A49: 10 | C49: Forbedringer af lydforhold | D49: stk. | E49: 8 | F49: 25000 | G49: =I49+K49+M49+O49+Q49+S49+U49 -> 1 | H49: =E49*F49 -> 200000 | J49: =IF(I49=0,0,SUM($H49*I49)) -> 0 | L49: =IF(K49=0,0,SUM($H49*K49)) -> 0 | N49: =IF(M49=0,0,SUM($H49*M49)) -> 0 | O49: 0.67 | P49: =IF(O49=0,0,SUM($H49*O49)) -> 134000 | Q49: 0.33 | R49: =IF(Q49=0,0,SUM($H49*Q49)) -> 66000 | T49: =IF(S49=0,0,SUM($H49*S49)) -> 0 | V49: =IF(S49+Q49>0.5,0,IF(Q49<0.51,IF(S49<0.51,+R49+T49,+R49),IF(S49<0.51,T49,0))) -> 66000 | AB49: =IF(J49>0,IF($V49>0,$V49,0),0) -> 0 | AC49: =IF(($AB49+$AD49+$AF49+$AH49)>($V49+1),AB49/2,AB49) -> 0 | AD49: =IF(L49>0,IF($V49>0,$V49,0),0) -> 0 | AE49: =IF(($AB49+$AD49+$AF49+$AH49)>($V49+1),AD49/2,AD49) -> 0 | AF49: =IF(N49>0,IF($V49>0,$V49,0),0) -> 0 | AG49: =IF(($AB49+$AD49+$AF49+$AH49)>($V49+1),AF49/2,AF49) -> 0 | AH49: =IF(P49>0,IF($V49>0,$V49,0),0) -> 66000 | AI49: =IF(($AB49+$AD49+$AF49+$AH49)>($V49+1),AH49/2,AH49) -> 66000 | AT49: 134000 | AY49: =IF($A49=AY$6,+$R49+$T49,"") ->  | BH49: 66000
G50: 0 | H50: 0 | J50: 0 | L50: 0 | N50: 0 | P50: 0 | R50: 0 | T50: 0 | V50: 0 | AB50: 0 | AC50: 0 | AD50: 0 | AE50: 0 | AF50: 0 | AG50: 0 | AH50: 0 | AI50: 0
C51: Type: T2 (Tilgængelihed) | G51: 0 | H51: 0 | J51: 0 | L51: 0 | N51: 0 | P51: 0 | R51: 0 | T51: 0 | V51: 0 | AB51: 0 | AC51: 0 | AD51: 0 | AE51: 0 | AF51: 0 | AG51: 0 | AH51: 0 | AI51: 0 | AQ51: =IF($A51=AQ$6,+$J51+$L51+$N51+$P51,"") ->  | AY51: =IF($A51=AY$6,+$R51+$T51,"") ->  | BA51: =IF($A51=BA$6,+$R51+$T51,"") -> 
A52: 7 | C52: Bad | D52: stk. | E52: 12 | F52: 72000 | G52: 1 | H52: 864000 | I52: 0.75 | J52: 648000 | L52: 0 | M52: 0 | N52: 0 | O52: 0 | P52: 0 | Q52: 0.25 | R52: 216000 | T52: 0 | V52: 216000 | AB52: 216000 | AC52: 216000 | AD52: 0 | AE52: 0 | AF52: 0 | AG52: 0 | AH52: 0 | AI52: 0 | AQ52: 648000 | BE52: 216000
A53: 10 | C53: Ombygning (Stue/Gang/køkken mv) | D53: stk. | E53: 12 | F53: 165000 | G53: 1 | H53: 1980000 | J53: 0 | L53: 0 | M53: 0 | N53: 0 | O53: 0.67 | P53: 1326600 | Q53: 0.33 | R53: 653400 | T53: 0 | V53: 653400 | AB53: 0 | AC53: 0 | AD53: 0 | AE53: 0 | AF53: 0 | AG53: 0 | AH53: 653400 | AI53: 653400 | AT53: 1326600 | BH53: 653400
A54: 3 | C54: Vinduer og døre | D54: stk. | E54: 12 | F54: 25000 | G54: 1 | H54: 300000 | J54: 0 | L54: 0 | M54: 0 | N54: 0 | O54: 0.67 | P54: 201000 | Q54: 0.33 | R54: 99000 | T54: 0 | V54: 99000 | AB54: 0 | AC54: 0 | AD54: 0 | AE54: 0 | AF54: 0 | AG54: 0 | AH54: 99000 | AI54: 99000 | AM54: 201000 | BA54: 99000
A55: 2 | C55: Nyt facade parti | D55: stk. | E55: 12 | F55: 15000 | G55: 1 | H55: 180000 | J55: 0 | L55: 0 | M55: 0 | N55: 0 | O55: 0.67 | P55: 120600 | Q55: 0.33 | R55: 59400 | T55: 0 | V55: 59400 | AB55: 0 | AC55: 0 | AD55: 0 | AE55: 0 | AF55: 0 | AG55: 0 | AH55: 59400 | AI55: 59400 | AL55: 120600 | AZ55: 59400
A56: 9 | C56: EL-Installationer | D56: stk. | E56: 12 | F56: 25000 | G56: 1 | H56: 300000 | J56: 0 | L56: 0 | M56: 0 | N56: 0 | O56: 0.67 | P56: 201000 | Q56: 0.33 | R56: 99000 | T56: 0 | V56: 99000 | AB56: 0 | AC56: 0 | AD56: 0 | AE56: 0 | AF56: 0 | AG56: 0 | AH56: 99000 | AI56: 99000 | AS56: 201000 | BG56: 99000
A57: 9 | C57: Vand og varme | D57: stk. | E57: 12 | F57: 29000 | G57: 1 | H57: 348000 | J57: 0 | L57: 0 | M57: 0 | N57: 0 | O57: 0.67 | P57: 233160 | Q57: 0.33 | R57: 114840 | T57: 0 | V57: 114840 | AB57: 0 | AC57: 0 | AD57: 0 | AE57: 0 | AF57: 0 | AG57: 0 | AH57: 114840 | AI57: 114840 | AS57: 233160 | BG57: 114840
A58: 9 | C58: Afløb | D58: stk. | E58: 12 | F58: 12000 | G58: 1 | H58: 144000 | J58: 0 | L58: 0 | M58: 0 | N58: 0 | O58: 0.67 | P58: 96480 | Q58: 0.33 | R58: 47520 | T58: 0 | V58: 47520 | AB58: 0 | AC58: 0 | AD58: 0 | AE58: 0 | AF58: 0 | AG58: 0 | AH58: 47520 | AI58: 47520 | AS58: 96480 | BG58: 47520
A59: 4 | C59: Altaner (udvidelse støttes) | D59: stk. | E59: 12 | F59: 75000 | G59: 1 | H59: 900000 | J59: 0 | L59: 0 | N59: 0 | O59: 1 | P59: 900000 | R59: 0 | T59: 0 | V59: 0 | AB59: 0 | AC59: 0 | AD59: 0 | AE59: 0 | AF59: 0 | AG59: 0 | AH59: 0 | AI59: 0 | AN59: 900000 | BB59: 0
A60: 10 | C60: Forbedringer af lydforhold | D60: stk. | E60: 12 | F60: 25000 | G60: =I60+K60+M60+O60+Q60+S60+U60 -> 1 | H60: =E60*F60 -> 300000 | J60: =IF(I60=0,0,SUM($H60*I60)) -> 0 | L60: =IF(K60=0,0,SUM($H60*K60)) -> 0 | N60: =IF(M60=0,0,SUM($H60*M60)) -> 0 | O60: 0.67 | P60: =IF(O60=0,0,SUM($H60*O60)) -> 201000 | Q60: 0.33 | R60: =IF(Q60=0,0,SUM($H60*Q60)) -> 99000 | T60: =IF(S60=0,0,SUM($H60*S60)) -> 0 | V60: =IF(S60+Q60>0.5,0,IF(Q60<0.51,IF(S60<0.51,+R60+T60,+R60),IF(S60<0.51,T60,0))) -> 99000 | AB60: =IF(J60>0,IF($V60>0,$V60,0),0) -> 0 | AC60: =IF(($AB60+$AD60+$AF60+$AH60)>($V60+1),AB60/2,AB60) -> 0 | AD60: =IF(L60>0,IF($V60>0,$V60,0),0) -> 0 | AE60: =IF(($AB60+$AD60+$AF60+$AH60)>($V60+1),AD60/2,AD60) -> 0 | AF60: =IF(N60>0,IF($V60>0,$V60,0),0) -> 0 | AG60: =IF(($AB60+$AD60+$AF60+$AH60)>($V60+1),AF60/2,AF60) -> 0 | AH60: =IF(P60>0,IF($V60>0,$V60,0),0) -> 99000 | AI60: =IF(($AB60+$AD60+$AF60+$AH60)>($V60+1),AH60/2,AH60) -> 99000 | AT60: 201000 | AY60: =IF($A60=AY$6,+$R60+$T60,"") ->  | BH60: 99000
G61: 0 | H61: 0 | J61: 0 | L61: 0 | N61: 0 | P61: 0 | R61: 0 | T61: 0 | V61: 0 | AB61: 0 | AC61: 0 | AD61: 0 | AE61: 0 | AF61: 0 | AG61: 0 | AH61: 0 | AI61: 0
C62: Elevatorer | G62: 0 | H62: 0 | J62: 0 | L62: 0 | N62: 0 | P62: 0 | R62: 0 | T62: 0 | V62: 0 | AB62: 0 | AC62: 0 | AD62: 0 | AE62: 0 | AF62: 0 | AG62: 0 | AH62: 0 | AI62: 0
A63: 6 | C63: Elevator med 5 stop | D63: stk. | E63: 2 | F63: 1050000 | G63: 1 | H63: 2100000 | J63: 0 | L63: 0 | N63: 0 | O63: 1 | P63: 2100000 | R63: 0 | T63: 0 | V63: 0 | AB63: 0 | AC63: 0 | AD63: 0 | AE63: 0 | AF63: 0 | AG63: 0 | AH63: 0 | AI63: 0 | AP63: 2100000 | BD63: 0
A64: 9 | C64: Elevator med 8 stop | D64: stk. | E64: 1 | F64: 1500000 | G64: 1 | H64: 1500000 | J64: 0 | L64: 0 | N64: 0 | O64: 1 | P64: 1500000 | R64: 0 | T64: 0 | V64: 0 | AB64: 0 | AC64: 0 | AD64: 0 | AE64: 0 | AF64: 0 | AG64: 0 | AH64: 0 | AI64: 0 | AL64: =IF($A64=AL$6,+$J64+$L64+$N64+$P64,"") ->  | AS64: 1500000 | AY64: =IF($A64=AY$6,+$R64+$T64,"") ->  | BG64: 0
G65: 0 | H65: 0 | J65: 0 | L65: 0 | N65: 0 | P65: 0 | R65: 0 | T65: 0 | V65: 0 | AB65: 0 | AC65: 0 | AD65: 0 | AE65: 0 | AF65: 0 | AG65: 0 | AH65: 0 | AI65: 0
C66: Tilpasning af elevator til trapperum / opgang | G66: 0 | H66: 0 | J66: 0 | L66: 0 | N66: 0 | P66: 0 | R66: 0 | T66: 0 | V66: 0 | AB66: 0 | AC66: 0 | AD66: 0 | AE66: 0 | AF66: 0 | AG66: 0 | AH66: 0 | AI66: 0
A67: 9 | C67: Trappeopgang ved elevator med 5 stop | D67: stk. | E67: 2 | F67: 225000 | G67: 1 | H67: 450000 | J67: 0 | L67: 0 | N67: 0 | O67: 1 | P67: 450000 | R67: 0 | T67: 0 | V67: 0 | AB67: 0 | AC67: 0 | AD67: 0 | AE67: 0 | AF67: 0 | AG67: 0 | AH67: 0 | AI67: 0 | AS67: 450000 | BG67: 0
A68: 9 | C68: Trappeopgang ved elevator med 8 stop | D68: stk. | E68: 1 | F68: 360000 | G68: 1 | H68: 360000 | J68: 0 | L68: 0 | N68: 0 | O68: 1 | P68: 360000 | R68: 0 | T68: 0 | V68: 0 | AB68: 0 | AC68: 0 | AD68: 0 | AE68: 0 | AF68: 0 | AG68: 0 | AH68: 0 | AI68: 0 | AS68: 360000 | BG68: 0
G69: 0 | H69: 0 | J69: 0 | L69: 0 | N69: 0 | P69: 0 | R69: 0 | T69: 0 | V69: 0 | AB69: 0 | AC69: 0 | AD69: 0 | AE69: 0 | AF69: 0 | AG69: 0 | AH69: 0 | AI69: 0
G70: =IFERROR(I70+K70+M70+O70+Q70+S70+U70,0) -> 0.9697607943 | H70: =SUM(H38:H69) -> 13294000 | I70: =J70/$H70 -> 0.08123965699 | J70: =SUM(J38:J69) -> 1080000 | K70: =L70/$H70 -> 0 | L70: =SUM(L38:L69) -> 0 | M70: =N70/$H70 -> 0 | N70: =SUM(N38:N69) -> 0 | O70: =P70/$H70 -> 0.7138919813 | P70: =SUM(P38:P69) -> 9490480 | Q70: =R70/$H70 -> 0.174629156 | R70: =SUM(R38:R69) -> 2321520 | S70: =T70/$H70 -> 0 | T70: =SUM(T38:T69) -> 0 | V70: =SUM(V38:V69) -> 2321520
B72: 6 | C72: Boliger med ombygning/sammenlægning - 6 stk. | G72: =I72+K72+M72+O72+Q72+S72+U72 -> 0 | H72: =E72*F72 -> 0 | J72: =IF(I72=0,0,SUM($H72*I72)) -> 0 | L72: =IF(K72=0,0,SUM($H72*K72)) -> 0 | N72: =IF(M72=0,0,SUM($H72*M72)) -> 0 | P72: =IF(O72=0,0,SUM($H72*O72)) -> 0 | R72: =IF(Q72=0,0,SUM($H72*Q72)) -> 0 | T72: =IF(S72=0,0,SUM($H72*S72)) -> 0 | V72: =IF(S72+Q72>0.5,0,IF(Q72<0.51,IF(S72<0.51,+R72+T72,+R72),IF(S72<0.51,T72,0))) -> 0 | AB72: =IF(J72>0,IF($V72>0,$V72,0),0) -> 0 | AC72: =IF(($AB72+$AD72+$AF72+$AH72)>($V72+1),AB72/2,AB72) -> 0 | AD72: =IF(L72>0,IF($V72>0,$V72,0),0) -> 0 | AE72: =IF(($AB72+$AD72+$AF72+$AH72)>($V72+1),AD72/2,AD72) -> 0 | AF72: =IF(N72>0,IF($V72>0,$V72,0),0) -> 0 | AG72: =IF(($AB72+$AD72+$AF72+$AH72)>($V72+1),AF72/2,AF72) -> 0 | AH72: =IF(P72>0,IF($V72>0,$V72,0),0) -> 0 | AI72: =IF(($AB72+$AD72+$AF72+$AH72)>($V72+1),AH72/2,AH72) -> 0 | AK72: =IF($A72=AK$6,+$J72+$L72+$N72+$P72,"") ->  | AL72: =IF($A72=AL$6,+$J72+$L72+$N72+$P72,"") ->  | AY72: =IF($A72=AY$6,+$R72+$T72,"") -> 
G73: 0 | H73: 0 | J73: 0 | L73: 0 | N73: 0 | P73: 0 | R73: 0 | T73: 0 | V73: 0 | AB73: 0 | AC73: 0 | AD73: 0 | AE73: 0 | AF73: 0 | AG73: 0 | AH73: 0 | AI73: 0
C74: Type: OS1 (Sammenlægning) | D74: stk. | G74: 0 | H74: 0 | J74: 0 | L74: 0 | N74: 0 | P74: 0 | R74: 0 | T74: 0 | V74: 0 | AB74: 0 | AC74: 0 | AD74: 0 | AE74: 0 | AF74: 0 | AG74: 0 | AH74: 0 | AI74: 0
A75: 7 | C75: Bad | D75: stk. | E75: 3 | F75: 75000 | G75: 1 | H75: 225000 | I75: 0.75 | J75: 168750 | L75: 0 | M75: 0 | N75: 0 | P75: 0 | Q75: 0.25 | R75: 56250 | T75: 0 | V75: 56250 | AB75: 56250 | AC75: 56250 | AD75: 0 | AE75: 0 | AF75: 0 | AG75: 0 | AH75: 0 | AI75: 0 | AQ75: 168750 | BE75: 56250
A76: 10 | C76: Ombygning (Stue/Gang/køkken mv) | D76: stk. | E76: 3 | F76: 130000 | G76: 1 | H76: 390000 | J76: 0 | L76: 0 | M76: 0.67 | N76: 261300 | P76: 0 | Q76: 0.33 | R76: 128700 | T76: 0 | V76: 128700 | AB76: 0 | AC76: 0 | AD76: 0 | AE76: 0 | AF76: 128700 | AG76: 128700 | AH76: 0 | AI76: 0 | AT76: 261300 | BH76: 128700
A77: 3 | C77: Vinduer og døre | D77: stk. | E77: 3 | F77: 42000 | G77: 1 | H77: 126000 | J77: 0 | L77: 0 | M77: 0.67 | N77: 84420 | P77: 0 | Q77: 0.33 | R77: 41580 | T77: 0 | V77: 41580 | AB77: 0 | AC77: 0 | AD77: 0 | AE77: 0 | AF77: 41580 | AG77: 41580 | AH77: 0 | AI77: 0 | AM77: 84420 | BA77: 41580
A78: 9 | C78: EL-Installationer | D78: stk. | E78: 3 | F78: 14000 | G78: 1 | H78: 42000 | L78: 0 | M78: 0.67 | N78: 28140 | P78: 0 | Q78: 0.33 | R78: 13860 | T78: 0 | V78: 13860 | AB78: 0 | AC78: 0 | AD78: 0 | AE78: 0 | AF78: 13860 | AG78: 13860 | AH78: 0 | AI78: 0 | AS78: 28140 | BG78: 13860
A79: 9 | C79: Vand og varme | D79: stk. | E79: 3 | F79: 27500 | G79: 1 | H79: 82500 | J79: 0 | L79: 0 | M79: 0.67 | N79: 55275 | P79: 0 | Q79: 0.33 | R79: 27225 | T79: 0 | V79: 27225 | AB79: 0 | AC79: 0 | AD79: 0 | AE79: 0 | AF79: 27225 | AG79: 27225 | AH79: 0 | AI79: 0 | AS79: 55275 | BG79: 27225
A80: 9 | C80: Afløb | D80: stk. | E80: 3 | F80: 12500 | G80: 1 | H80: 37500 | J80: 0 | L80: 0 | M80: 0.67 | N80: 25125 | P80: 0 | Q80: 0.33 | R80: 12375 | T80: 0 | V80: 12375 | AB80: 0 | AC80: 0 | AD80: 0 | AE80: 0 | AF80: 12375 | AG80: 12375 | AH80: 0 | AI80: 0 | AS80: 25125 | BG80: 12375
A81: 4 | C81: Altaner | D81: stk. | E81: 3 | F81: 75000 | G81: 1 | H81: 225000 | J81: 0 | L81: 0 | M81: 0 | N81: 0 | P81: 0 | Q81: 1 | R81: 225000 | T81: 0 | V81: 0 | AB81: 0 | AC81: 0 | AD81: 0 | AE81: 0 | AF81: 0 | AG81: 0 | AH81: 0 | AI81: 0 | AN81: 0 | BB81: 225000
A82: 10 | C82: Forbedringer af lydforhold | D82: stk. | E82: 3 | F82: 25000 | G82: 1 | H82: 75000 | J82: 0 | L82: 0 | M82: 0.67 | N82: 50250 | P82: 0 | Q82: 0.33 | R82: 24750 | T82: 0 | V82: 24750 | AB82: 0 | AC82: 0 | AD82: 0 | AE82: 0 | AF82: 24750 | AG82: 24750 | AH82: 0 | AI82: 0 | AT82: 50250 | BH82: 24750
G83: 0 | H83: 0 | J83: 0 | L83: 0 | N83: 0 | P83: 0 | R83: 0 | T83: 0 | V83: 0 | AB83: 0 | AC83: 0 | AD83: 0 | AE83: 0 | AF83: 0 | AG83: 0 | AH83: 0 | AI83: 0
C84: Type: OS2 (Ombygning) | G84: 0 | H84: 0 | J84: 0 | L84: 0 | N84: 0 | P84: 0 | R84: 0 | T84: 0 | V84: 0 | AB84: 0 | AC84: 0 | AD84: 0 | AE84: 0 | AF84: 0 | AG84: 0 | AH84: 0 | AI84: 0
A85: 7 | C85: Bad | D85: stk. | E85: 3 | F85: 75000 | G85: 1 | H85: 225000 | I85: 0.75 | J85: 168750 | L85: 0 | M85: 0 | N85: 0 | P85: 0 | Q85: 0.25 | R85: 56250 | T85: 0 | V85: 56250 | AB85: 56250 | AC85: 56250 | AD85: 0 | AE85: 0 | AF85: 0 | AG85: 0 | AH85: 0 | AI85: 0 | AQ85: 168750 | BE85: 56250
A86: 10 | C86: Ombygning (Stue/Gang/køkken mv) | D86: stk. | E86: 3 | F86: 165000 | G86: 1 | H86: 495000 | J86: 0 | L86: 0 | M86: 0.67 | N86: 331650 | P86: 0 | Q86: 0.33 | R86: 163350 | T86: 0 | V86: 163350 | AB86: 0 | AC86: 0 | AD86: 0 | AE86: 0 | AF86: 163350 | AG86: 163350 | AH86: 0 | AI86: 0 | AT86: 331650 | BH86: 163350
A87: 3 | C87: Vinduer og døre | D87: stk. | E87: 3 | F87: 25000 | G87: 1 | H87: 75000 | J87: 0 | L87: 0 | M87: 0.67 | N87: 50250 | P87: 0 | Q87: 0.33 | R87: 24750 | T87: 0 | V87: 24750 | AB87: 0 | AC87: 0 | AD87: 0 | AE87: 0 | AF87: 24750 | AG87: 24750 | AH87: 0 | AI87: 0 | AM87: 50250 | BA87: 24750
A88: 9 | C88: EL-Installationer | D88: stk. | E88: 3 | F88: 15000 | G88: 1 | H88: 45000 | J88: 0 | L88: 0 | M88: 0.67 | N88: 30150 | P88: 0 | Q88: 0.33 | R88: 14850 | T88: 0 | V88: 14850 | AB88: 0 | AC88: 0 | AD88: 0 | AE88: 0 | AF88: 14850 | AG88: 14850 | AH88: 0 | AI88: 0 | AS88: 30150 | BG88: 14850
A89: 9 | C89: Vand og varme | D89: stk. | E89: 3 | F89: 32000 | G89: 1 | H89: 96000 | J89: 0 | L89: 0 | M89: 0.67 | N89: 64320 | P89: 0 | Q89: 0.33 | R89: 31680 | T89: 0 | V89: 31680 | AB89: 0 | AC89: 0 | AD89: 0 | AE89: 0 | AF89: 31680 | AG89: 31680 | AH89: 0 | AI89: 0 | AS89: 64320 | BG89: 31680
A90: 9 | C90: Afløb | D90: stk. | E90: 3 | F90: 15000 | G90: 1 | H90: 45000 | J90: 0 | L90: 0 | M90: 0.67 | N90: 30150 | P90: 0 | Q90: 0.33 | R90: 14850 | T90: 0 | V90: 14850 | AB90: 0 | AC90: 0 | AD90: 0 | AE90: 0 | AF90: 14850 | AG90: 14850 | AH90: 0 | AI90: 0 | AS90: 30150 | BG90: 14850
A91: 4 | C91: Altaner | D91: stk. | E91: 3 | F91: 75000 | G91: 1 | H91: 225000 | J91: 0 | L91: 0 | M91: 0 | N91: 0 | P91: 0 | Q91: 1 | R91: 225000 | T91: 0 | V91: 0 | AB91: 0 | AC91: 0 | AD91: 0 | AE91: 0 | AF91: 0 | AG91: 0 | AH91: 0 | AI91: 0 | AN91: 0 | BB91: 225000
A92: 10 | C92: Forbedringer af lydforhold | D92: stk. | E92: 3 | F92: 25000 | G92: 1 | H92: 75000 | J92: 0 | L92: 0 | M92: 0.67 | N92: 50250 | P92: 0 | Q92: 0.33 | R92: 24750 | T92: 0 | V92: 24750 | AB92: 0 | AC92: 0 | AD92: 0 | AE92: 0 | AF92: 24750 | AG92: 24750 | AH92: 0 | AI92: 0 | AT92: 50250 | BA92: =IF($A92=BA$6,+$R92+$T92,"") ->  | BH92: 24750
G93: 0 | H93: 0 | J93: 0 | L93: 0 | N93: 0 | P93: 0 | R93: 0 | T93: 0 | V93: 0 | AB93: 0 | AC93: 0 | AD93: 0 | AE93: 0 | AF93: 0 | AG93: 0 | AH93: 0 | AI93: 0
G94: =IFERROR(I94+K94+M94+O94+Q94+S94+U94,0) -> 1 | H94: =SUM(H72:H93) -> 2484000 | I94: =J94/$H94 -> 0.1358695652 | J94: =SUM(J72:J93) -> 337500 | K94: =L94/$H94 -> 0 | L94: =SUM(L72:L93) -> 0 | M94: =N94/$H94 -> 0.4272463768 | N94: =SUM(N72:N93) -> 1061280 | O94: =P94/$H94 -> 0 | P94: =SUM(P72:P93) -> 0 | Q94: =R94/$H94 -> 0.436884058 | R94: =SUM(R72:R93) -> 1085220 | S94: =T94/$H94 -> 0 | T94: =SUM(T72:T93) -> 0 | V94: =SUM(V72:V93) -> 635220
B96: 7 | C96: Boliger med modernisering - 114 boliger | G96: =I96+K96+M96+O96+Q96+S96+U96 -> 0 | H96: =E96*F96 -> 0 | J96: =IF(I96=0,0,SUM($H96*I96)) -> 0 | L96: =IF(K96=0,0,SUM($H96*K96)) -> 0 | N96: =IF(M96=0,0,SUM($H96*M96)) -> 0 | P96: =IF(O96=0,0,SUM($H96*O96)) -> 0 | R96: =IF(Q96=0,0,SUM($H96*Q96)) -> 0 | T96: =IF(S96=0,0,SUM($H96*S96)) -> 0 | V96: =IF(S96+Q96>0.5,0,IF(Q96<0.51,IF(S96<0.51,+R96+T96,+R96),IF(S96<0.51,T96,0))) -> 0 | AB96: =IF(J96>0,IF($V96>0,$V96,0),0) -> 0 | AC96: =IF(($AB96+$AD96+$AF96+$AH96)>($V96+1),AB96/2,AB96) -> 0 | AD96: =IF(L96>0,IF($V96>0,$V96,0),0) -> 0 | AE96: =IF(($AB96+$AD96+$AF96+$AH96)>($V96+1),AD96/2,AD96) -> 0 | AF96: =IF(N96>0,IF($V96>0,$V96,0),0) -> 0 | AG96: =IF(($AB96+$AD96+$AF96+$AH96)>($V96+1),AF96/2,AF96) -> 0 | AH96: =IF(P96>0,IF($V96>0,$V96,0),0) -> 0 | AI96: =IF(($AB96+$AD96+$AF96+$AH96)>($V96+1),AH96/2,AH96) -> 0 | AK96: =IF($A96=AK$6,+$J96+$L96+$N96+$P96,"") ->  | AL96: =IF($A96=AL$6,+$J96+$L96+$N96+$P96,"") ->  | AY96: =IF($A96=AY$6,+$R96+$T96,"") -> 
G97: 0 | H97: 0 | J97: 0 | L97: 0 | N97: 0 | P97: 0 | R97: 0 | T97: 0 | V97: 0 | AB97: 0 | AC97: 0 | AD97: 0 | AE97: 0 | AF97: 0 | AG97: 0 | AH97: 0 | AI97: 0
C98: Type: M1 (Oprindelig boligplan) | G98: 0 | H98: 0 | J98: 0 | L98: 0 | N98: 0 | P98: 0 | R98: 0 | T98: 0 | V98: 0 | AB98: 0 | AC98: 0 | AD98: 0 | AE98: 0 | AF98: 0 | AG98: 0 | AH98: 0 | AI98: 0
A99: 7 | C99: Bad | D99: stk. | E99: 48 | F99: 75000 | G99: 1 | H99: 3600000 | J99: 0 | L99: 0 | N99: 0 | P99: 0 | Q99: 1 | R99: 3600000 | T99: 0 | V99: 0 | AB99: 0 | AC99: 0 | AD99: 0 | AE99: 0 | AF99: 0 | AG99: 0 | AH99: 0 | AI99: 0 | AQ99: 0 | BE99: 3600000
A100: 10 | C100: Ombygning (Stue/Gang/køkken mv) | D100: stk. | E100: 48 | F100: 85000 | G100: 1 | H100: 4080000 | J100: 0 | L100: 0 | N100: 0 | P100: 0 | Q100: 1 | R100: 4080000 | T100: 0 | V100: 0 | AB100: 0 | AC100: 0 | AD100: 0 | AE100: 0 | AF100: 0 | AG100: 0 | AH100: 0 | AI100: 0 | AT100: 0 | BH100: 4080000
A101: 3 | C101: Vinduer og døre | D101: stk. | E101: 48 | F101: 42000 | G101: 1 | H101: 2016000 | J101: 0 | L101: 0 | N101: 0 | P101: 0 | Q101: 1 | R101: 2016000 | T101: 0 | V101: 0 | AB101: 0 | AC101: 0 | AD101: 0 | AE101: 0 | AF101: 0 | AG101: 0 | AH101: 0 | AI101: 0 | AM101: 0 | BA101: 2016000
A102: 9 | C102: EL-Installationer | D102: stk. | E102: 48 | F102: 13600 | G102: 1 | H102: 652800 | J102: 0 | L102: 0 | N102: 0 | P102: 0 | Q102: 1 | R102: 652800 | T102: 0 | V102: 0 | AB102: 0 | AC102: 0 | AD102: 0 | AE102: 0 | AF102: 0 | AG102: 0 | AH102: 0 | AI102: 0 | AS102: 0 | BG102: 652800
A103: 9 | C103: Vand og varme | D103: stk. | E103: 48 | F103: 28000 | G103: 1 | H103: 1344000 | J103: 0 | L103: 0 | N103: 0 | P103: 0 | Q103: 1 | R103: 1344000 | T103: 0 | V103: 0 | AB103: 0 | AC103: 0 | AD103: 0 | AE103: 0 | AF103: 0 | AG103: 0 | AH103: 0 | AI103: 0 | AS103: 0 | BG103: 1344000
A104: 9 | C104: Afløb | D104: stk. | E104: 48 | F104: 12500 | G104: 1 | H104: 600000 | J104: 0 | L104: 0 | N104: 0 | P104: 0 | Q104: 1 | R104: 600000 | T104: 0 | V104: 0 | AB104: 0 | AC104: 0 | AD104: 0 | AE104: 0 | AF104: 0 | AG104: 0 | AH104: 0 | AI104: 0 | AS104: 0 | BG104: 600000
A105: 4 | C105: Altaner | D105: stk. | E105: 48 | F105: 75000 | G105: 1 | H105: 3600000 | J105: 0 | L105: 0 | N105: 0 | P105: 0 | Q105: 1 | R105: 3600000 | T105: 0 | V105: 0 | AB105: 0 | AC105: 0 | AD105: 0 | AE105: 0 | AF105: 0 | AG105: 0 | AH105: 0 | AI105: 0 | AN105: 0 | BB105: 3600000
G106: 0 | H106: 0 | J106: 0 | L106: 0 | N106: 0 | P106: 0 | R106: 0 | T106: 0 | V106: 0 | AB106: 0 | AC106: 0 | AD106: 0 | AE106: 0 | AF106: 0 | AG106: 0 | AH106: 0 | AI106: 0
C107: Type: M2 (Oprindelig boligplan) | G107: 0 | H107: 0 | J107: 0 | L107: 0 | N107: 0 | P107: 0 | R107: 0 | T107: 0 | V107: 0 | AB107: 0 | AC107: 0 | AD107: 0 | AE107: 0 | AF107: 0 | AG107: 0 | AH107: 0 | AI107: 0
A108: 7 | C108: Bad | D108: stk. | E108: 36 | F108: 75000 | G108: 1 | H108: 2700000 | J108: 0 | L108: 0 | N108: 0 | P108: 0 | Q108: 1 | R108: 2700000 | T108: 0 | V108: 0 | AB108: 0 | AC108: 0 | AD108: 0 | AE108: 0 | AF108: 0 | AG108: 0 | AH108: 0 | AI108: 0 | AQ108: 0 | BE108: 2700000
A109: 10 | C109: Ombygning (Stue/Gang/køkken mv) | D109: stk. | E109: 36 | F109: 85000 | G109: 1 | H109: 3060000 | J109: 0 | L109: 0 | N109: 0 | P109: 0 | Q109: 1 | R109: 3060000 | T109: 0 | V109: 0 | AB109: 0 | AC109: 0 | AD109: 0 | AE109: 0 | AF109: 0 | AG109: 0 | AH109: 0 | AI109: 0 | AT109: 0 | BH109: 3060000
A110: 3 | C110: Vinduer og døre | D110: stk. | E110: 36 | F110: 42000 | G110: 1 | H110: 1512000 | J110: 0 | L110: 0 | N110: 0 | P110: 0 | Q110: 1 | R110: 1512000 | T110: 0 | V110: 0 | AB110: 0 | AC110: 0 | AD110: 0 | AE110: 0 | AF110: 0 | AG110: 0 | AH110: 0 | AI110: 0 | AM110: 0 | BA110: 1512000
A111: 9 | C111: EL-Installationer | D111: stk. | E111: 36 | F111: 13600 | G111: 1 | H111: 489600 | J111: 0 | L111: 0 | N111: 0 | P111: 0 | Q111: 1 | R111: 489600 | T111: 0 | V111: 0 | AB111: 0 | AC111: 0 | AD111: 0 | AE111: 0 | AF111: 0 | AG111: 0 | AH111: 0 | AI111: 0 | AS111: 0 | BG111: 489600
A112: 9 | C112: Vand og varme | D112: stk. | E112: 36 | F112: 30500 | G112: 1 | H112: 1098000 | J112: 0 | L112: 0 | N112: 0 | P112: 0 | Q112: 1 | R112: 1098000 | T112: 0 | V112: 0 | AB112: 0 | AC112: 0 | AD112: 0 | AE112: 0 | AF112: 0 | AG112: 0 | AH112: 0 | AI112: 0 | AS112: 0 | BG112: 1098000
A113: 9 | C113: Afløb | D113: stk. | E113: 36 | F113: 9000 | G113: 1 | H113: 324000 | J113: 0 | L113: 0 | N113: 0 | P113: 0 | Q113: 1 | R113: 324000 | T113: 0 | V113: 0 | AB113: 0 | AC113: 0 | AD113: 0 | AE113: 0 | AF113: 0 | AG113: 0 | AH113: 0 | AI113: 0 | AS113: 0 | BG113: 324000
A114: 4 | C114: Altaner | D114: stk. | E114: 36 | F114: 75000 | G114: 1 | H114: 2700000 | J114: 0 | L114: 0 | N114: 0 | P114: 0 | Q114: 1 | R114: 2700000 | T114: 0 | V114: 0 | AB114: 0 | AC114: 0 | AD114: 0 | AE114: 0 | AF114: 0 | AG114: 0 | AH114: 0 | AI114: 0 | AN114: 0 | BB114: 2700000
G115: 0 | H115: 0 | J115: 0 | L115: 0 | N115: 0 | P115: 0 | R115: 0 | T115: 0 | V115: 0 | AB115: 0 | AC115: 0 | AD115: 0 | AE115: 0 | AF115: 0 | AG115: 0 | AH115: 0 | AI115: 0
C116: Type: M3 (Oprindelig boligplan) | G116: 0 | H116: 0 | J116: 0 | L116: 0 | N116: 0 | P116: 0 | R116: 0 | T116: 0 | V116: 0 | AB116: 0 | AC116: 0 | AD116: 0 | AE116: 0 | AF116: 0 | AG116: 0 | AH116: 0 | AI116: 0 | AL116: =IF($A116=AL$6,+$J116+$L116+$N116+$P116,"") ->  | AQ116: =IF($A116=AQ$6,+$J116+$L116+$N116+$P116,"") ->  | AY116: =IF($A116=AY$6,+$R116+$T116,"") ->  | BA116: =IF($A116=BA$6,+$R116+$T116,"") -> 
A117: 7 | C117: Bad | D117: stk. | E117: 30 | F117: 75000 | G117: 1 | H117: 2250000 | J117: 0 | L117: 0 | N117: 0 | P117: 0 | Q117: 1 | R117: 2250000 | T117: 0 | V117: 0 | AB117: 0 | AC117: 0 | AD117: 0 | AE117: 0 | AF117: 0 | AG117: 0 | AH117: 0 | AI117: 0 | AQ117: 0 | BE117: 2250000
A118: 10 | C118: Ombygning (Stue/Gang/køkken mv) | D118: stk. | E118: 30 | F118: 90000 | G118: 1 | H118: 2700000 | J118: 0 | L118: 0 | N118: 0 | P118: 0 | Q118: 1 | R118: 2700000 | T118: 0 | V118: 0 | AB118: 0 | AC118: 0 | AD118: 0 | AE118: 0 | AF118: 0 | AG118: 0 | AH118: 0 | AI118: 0 | AT118: 0 | BH118: 2700000
A119: 2 | C119: Vinduer og døre | D119: stk. | E119: 30 | F119: 42000 | G119: 1 | H119: 1260000 | J119: 0 | L119: 0 | N119: 0 | P119: 0 | Q119: 1 | R119: 1260000 | T119: 0 | V119: 0 | AB119: 0 | AC119: 0 | AD119: 0 | AE119: 0 | AF119: 0 | AG119: 0 | AH119: 0 | AI119: 0 | AL119: 0 | AZ119: 1260000
A120: 10 | C120: EL-Installationer | D120: stk. | E120: 30 | F120: 14000 | G120: 1 | H120: 420000 | J120: 0 | L120: 0 | N120: 0 | P120: 0 | Q120: 1 | R120: 420000 | T120: 0 | V120: 0 | AB120: 0 | AC120: 0 | AD120: 0 | AE120: 0 | AF120: 0 | AG120: 0 | AH120: 0 | AI120: 0 | AT120: 0 | BH120: 420000
A121: 10 | C121: Vand og varme | D121: stk. | E121: 30 | F121: 21000 | G121: 1 | H121: 630000 | J121: 0 | L121: 0 | N121: 0 | P121: 0 | Q121: 1 | R121: 630000 | T121: 0 | V121: 0 | AB121: 0 | AC121: 0 | AD121: 0 | AE121: 0 | AF121: 0 | AG121: 0 | AH121: 0 | AI121: 0 | AT121: 0 | BH121: 630000
A122: 10 | C122: Afløb | D122: stk. | E122: 30 | F122: 12500 | G122: 1 | H122: 375000 | J122: 0 | L122: 0 | N122: 0 | P122: 0 | Q122: 1 | R122: 375000 | T122: 0 | V122: 0 | AB122: 0 | AC122: 0 | AD122: 0 | AE122: 0 | AF122: 0 | AG122: 0 | AH122: 0 | AI122: 0 | AT122: 0 | BH122: 375000
A123: 4 | C123: Altaner | D123: stk. | E123: 30 | F123: 75000 | G123: 1 | H123: 2250000 | J123: 0 | L123: 0 | N123: 0 | P123: 0 | Q123: 1 | R123: 2250000 | T123: 0 | V123: 0 | AB123: 0 | AC123: 0 | AD123: 0 | AE123: 0 | AF123: 0 | AG123: 0 | AH123: 0 | AI123: 0 | AN123: 0 | BB123: 2250000
G124: 0 | H124: 0 | J124: 0 | L124: 0 | N124: 0 | P124: 0 | R124: 0 | T124: 0 | V124: 0 | AB124: 0 | AC124: 0 | AD124: 0 | AE124: 0 | AF124: 0 | AG124: 0 | AH124: 0 | AI124: 0
G125: =IFERROR(I125+K125+M125+O125+Q125+S125+U125,0) -> 1 | H125: =SUM(H96:H124) -> 37661400 | I125: =J125/$H125 -> 0 | J125: =SUM(J96:J124) -> 0 | K125: =L125/$H125 -> 0 | L125: =SUM(L96:L124) -> 0 | M125: =N125/$H125 -> 0 | N125: =SUM(N96:N124) -> 0 | O125: =P125/$H125 -> 0 | P125: =SUM(P96:P124) -> 0 | Q125: =R125/$H125 -> 1 | R125: =SUM(R96:R124) -> 37661400 | S125: =T125/$H125 -> 0 | T125: =SUM(T96:T124) -> 0 | V125: =SUM(V96:V124) -> 0
B127: 8 | C127: Teknikrum | G127: =I127+K127+M127+O127+Q127+S127+U127 -> 0 | H127: =E127*F127 -> 0 | J127: =IF(I127=0,0,SUM($H127*I127)) -> 0 | L127: =IF(K127=0,0,SUM($H127*K127)) -> 0 | N127: =IF(M127=0,0,SUM($H127*M127)) -> 0 | P127: =IF(O127=0,0,SUM($H127*O127)) -> 0 | R127: =IF(Q127=0,0,SUM($H127*Q127)) -> 0 | T127: =IF(S127=0,0,SUM($H127*S127)) -> 0 | V127: =IF(S127+Q127>0.5,0,IF(Q127<0.51,IF(S127<0.51,+R127+T127,+R127),IF(S127<0.51,T127,0))) -> 0 | AB127: =IF(J127>0,IF($V127>0,$V127,0),0) -> 0 | AC127: =IF(($AB127+$AD127+$AF127+$AH127)>($V127+1),AB127/2,AB127) -> 0 | AD127: =IF(L127>0,IF($V127>0,$V127,0),0) -> 0 | AE127: =IF(($AB127+$AD127+$AF127+$AH127)>($V127+1),AD127/2,AD127) -> 0 | AF127: =IF(N127>0,IF($V127>0,$V127,0),0) -> 0 | AG127: =IF(($AB127+$AD127+$AF127+$AH127)>($V127+1),AF127/2,AF127) -> 0 | AH127: =IF(P127>0,IF($V127>0,$V127,0),0) -> 0 | AI127: =IF(($AB127+$AD127+$AF127+$AH127)>($V127+1),AH127/2,AH127) -> 0 | AK127: =IF($A127=AK$6,+$J127+$L127+$N127+$P127,"") ->  | AL127: =IF($A127=AL$6,+$J127+$L127+$N127+$P127,"") ->  | AY127: =IF($A127=AY$6,+$R127+$T127,"") -> 
A128: 9 | C128: Teknikrum | D128: stk. | E128: 5 | F128: 63013 | G128: =I128+K128+M128+O128+Q128+S128+U128 -> 1 | H128: =E128*F128 -> 315065 | J128: =IF(I128=0,0,SUM($H128*I128)) -> 0 | L128: =IF(K128=0,0,SUM($H128*K128)) -> 0 | N128: =IF(M128=0,0,SUM($H128*M128)) -> 0 | P128: =IF(O128=0,0,SUM($H128*O128)) -> 0 | R128: =IF(Q128=0,0,SUM($H128*Q128)) -> 0 | S128: 1 | T128: =IF(S128=0,0,SUM($H128*S128)) -> 315065 | V128: =IF(S128+Q128>0.5,0,IF(Q128<0.51,IF(S128<0.51,+R128+T128,+R128),IF(S128<0.51,T128,0))) -> 0 | AB128: =IF(J128>0,IF($V128>0,$V128,0),0) -> 0 | AC128: =IF(($AB128+$AD128+$AF128+$AH128)>($V128+1),AB128/2,AB128) -> 0 | AD128: =IF(L128>0,IF($V128>0,$V128,0),0) -> 0 | AE128: =IF(($AB128+$AD128+$AF128+$AH128)>($V128+1),AD128/2,AD128) -> 0 | AF128: =IF(N128>0,IF($V128>0,$V128,0),0) -> 0 | AG128: =IF(($AB128+$AD128+$AF128+$AH128)>($V128+1),AF128/2,AF128) -> 0 | AH128: =IF(P128>0,IF($V128>0,$V128,0),0) -> 0 | AI128: =IF(($AB128+$AD128+$AF128+$AH128)>($V128+1),AH128/2,AH128) -> 0 | AK128: =IF($A128=AK$6,+$J128+$L128+$N128+$P128,"") ->  | AS128: 0 | BG128: 315065
G129: =I129+K129+M129+O129+Q129+S129+U129 -> 0 | H129: =E129*F129 -> 0 | J129: =IF(I129=0,0,SUM($H129*I129)) -> 0 | L129: =IF(K129=0,0,SUM($H129*K129)) -> 0 | N129: =IF(M129=0,0,SUM($H129*M129)) -> 0 | P129: =IF(O129=0,0,SUM($H129*O129)) -> 0 | R129: =IF(Q129=0,0,SUM($H129*Q129)) -> 0 | T129: =IF(S129=0,0,SUM($H129*S129)) -> 0 | V129: =IF(S129+Q129>0.5,0,IF(Q129<0.51,IF(S129<0.51,+R129+T129,+R129),IF(S129<0.51,T129,0))) -> 0 | AB129: =IF(J129>0,IF($V129>0,$V129,0),0) -> 0 | AC129: =IF(($AB129+$AD129+$AF129+$AH129)>($V129+1),AB129/2,AB129) -> 0 | AD129: =IF(L129>0,IF($V129>0,$V129,0),0) -> 0 | AE129: =IF(($AB129+$AD129+$AF129+$AH129)>($V129+1),AD129/2,AD129) -> 0 | AF129: =IF(N129>0,IF($V129>0,$V129,0),0) -> 0 | AG129: =IF(($AB129+$AD129+$AF129+$AH129)>($V129+1),AF129/2,AF129) -> 0 | AH129: =IF(P129>0,IF($V129>0,$V129,0),0) -> 0 | AI129: =IF(($AB129+$AD129+$AF129+$AH129)>($V129+1),AH129/2,AH129) -> 0 | AK129: =IF($A129=AK$6,+$J129+$L129+$N129+$P129,"") -> 
G130: =IFERROR(I130+K130+M130+O130+Q130+S130+U130,0) -> 1 | H130: =SUM(H127:H129) -> 315065 | I130: =J130/$H130 -> 0 | J130: =SUM(J127:J129) -> 0 | K130: =L130/$H130 -> 0 | L130: =SUM(L127:L129) -> 0 | M130: =N130/$H130 -> 0 | N130: =SUM(N127:N129) -> 0 | O130: =P130/$H130 -> 0 | P130: =SUM(P127:P129) -> 0 | Q130: =R130/$H130 -> 0 | R130: =SUM(R127:R129) -> 0 | S130: =T130/$H130 -> 1 | T130: =SUM(T127:T129) -> 315065 | V130: =SUM(V127:V129) -> 0
B132: 9 | C132: Indeklima | G132: =I132+K132+M132+O132+Q132+S132+U132 -> 0 | H132: =E132*F132 -> 0 | J132: =IF(I132=0,0,SUM($H132*I132)) -> 0 | L132: =IF(K132=0,0,SUM($H132*K132)) -> 0 | N132: =IF(M132=0,0,SUM($H132*M132)) -> 0 | P132: =IF(O132=0,0,SUM($H132*O132)) -> 0 | R132: =IF(Q132=0,0,SUM($H132*Q132)) -> 0 | T132: =IF(S132=0,0,SUM($H132*S132)) -> 0 | V132: =IF(S132+Q132>0.5,0,IF(Q132<0.51,IF(S132<0.51,+R132+T132,+R132),IF(S132<0.51,T132,0))) -> 0 | AB132: =IF(J132>0,IF($V132>0,$V132,0),0) -> 0 | AC132: =IF(($AB132+$AD132+$AF132+$AH132)>($V132+1),AB132/2,AB132) -> 0 | AD132: =IF(L132>0,IF($V132>0,$V132,0),0) -> 0 | AE132: =IF(($AB132+$AD132+$AF132+$AH132)>($V132+1),AD132/2,AD132) -> 0 | AF132: =IF(N132>0,IF($V132>0,$V132,0),0) -> 0 | AG132: =IF(($AB132+$AD132+$AF132+$AH132)>($V132+1),AF132/2,AF132) -> 0 | AH132: =IF(P132>0,IF($V132>0,$V132,0),0) -> 0 | AI132: =IF(($AB132+$AD132+$AF132+$AH132)>($V132+1),AH132/2,AH132) -> 0 | AK132: =IF($A132=AK$6,+$J132+$L132+$N132+$P132,"") ->  | AL132: =IF($A132=AL$6,+$J132+$L132+$N132+$P132,"") ->  | AY132: =IF($A132=AY$6,+$R132+$T132,"") -> 
A133: 9 | C133: Asbest - VVS installationer | D133: stk. | E133: 1 | F133: 365000 | G133: =I133+K133+M133+O133+Q133+S133+U133 -> 1 | H133: =E133*F133 -> 365000 | J133: =IF(I133=0,0,SUM($H133*I133)) -> 0 | L133: =IF(K133=0,0,SUM($H133*K133)) -> 0 | N133: =IF(M133=0,0,SUM($H133*M133)) -> 0 | P133: =IF(O133=0,0,SUM($H133*O133)) -> 0 | Q133: 1 | R133: =IF(Q133=0,0,SUM($H133*Q133)) -> 365000 | T133: =IF(S133=0,0,SUM($H133*S133)) -> 0 | V133: =IF(S133+Q133>0.5,0,IF(Q133<0.51,IF(S133<0.51,+R133+T133,+R133),IF(S133<0.51,T133,0))) -> 0 | AB133: =IF(J133>0,IF($V133>0,$V133,0),0) -> 0 | AC133: =IF(($AB133+$AD133+$AF133+$AH133)>($V133+1),AB133/2,AB133) -> 0 | AD133: =IF(L133>0,IF($V133>0,$V133,0),0) -> 0 | AE133: =IF(($AB133+$AD133+$AF133+$AH133)>($V133+1),AD133/2,AD133) -> 0 | AF133: =IF(N133>0,IF($V133>0,$V133,0),0) -> 0 | AG133: =IF(($AB133+$AD133+$AF133+$AH133)>($V133+1),AF133/2,AF133) -> 0 | AH133: =IF(P133>0,IF($V133>0,$V133,0),0) -> 0 | AI133: =IF(($AB133+$AD133+$AF133+$AH133)>($V133+1),AH133/2,AH133) -> 0 | AK133: =IF($A133=AK$6,+$J133+$L133+$N133+$P133,"") ->  | AS133: 0 | BG133: 365000
A134: 10 | C134: Forbedringer af lydforhold | D134: stk. | E134: 1 | F134: 5000000 | G134: =I134+K134+M134+O134+Q134+S134+U134 -> 1 | H134: =E134*F134 -> 5000000 | J134: =IF(I134=0,0,SUM($H134*I134)) -> 0 | L134: =IF(K134=0,0,SUM($H134*K134)) -> 0 | N134: =IF(M134=0,0,SUM($H134*M134)) -> 0 | P134: =IF(O134=0,0,SUM($H134*O134)) -> 0 | Q134: 1 | R134: =IF(Q134=0,0,SUM($H134*Q134)) -> 5000000 | T134: =IF(S134=0,0,SUM($H134*S134)) -> 0 | V134: =IF(S134+Q134>0.5,0,IF(Q134<0.51,IF(S134<0.51,+R134+T134,+R134),IF(S134<0.51,T134,0))) -> 0 | AB134: =IF(J134>0,IF($V134>0,$V134,0),0) -> 0 | AC134: =IF(($AB134+$AD134+$AF134+$AH134)>($V134+1),AB134/2,AB134) -> 0 | AD134: =IF(L134>0,IF($V134>0,$V134,0),0) -> 0 | AE134: =IF(($AB134+$AD134+$AF134+$AH134)>($V134+1),AD134/2,AD134) -> 0 | AF134: =IF(N134>0,IF($V134>0,$V134,0),0) -> 0 | AG134: =IF(($AB134+$AD134+$AF134+$AH134)>($V134+1),AF134/2,AF134) -> 0 | AH134: =IF(P134>0,IF($V134>0,$V134,0),0) -> 0 | AI134: =IF(($AB134+$AD134+$AF134+$AH134)>($V134+1),AH134/2,AH134) -> 0 | AK134: =IF($A134=AK$6,+$J134+$L134+$N134+$P134,"") ->  | AT134: 0 | BH134: 5000000
G135: =I135+K135+M135+O135+Q135+S135+U135 -> 0 | H135: =E135*F135 -> 0 | J135: =IF(I135=0,0,SUM($H135*I135)) -> 0 | L135: =IF(K135=0,0,SUM($H135*K135)) -> 0 | N135: =IF(M135=0,0,SUM($H135*M135)) -> 0 | P135: =IF(O135=0,0,SUM($H135*O135)) -> 0 | R135: =IF(Q135=0,0,SUM($H135*Q135)) -> 0 | T135: =IF(S135=0,0,SUM($H135*S135)) -> 0 | V135: =IF(S135+Q135>0.5,0,IF(Q135<0.51,IF(S135<0.51,+R135+T135,+R135),IF(S135<0.51,T135,0))) -> 0 | AB135: =IF(J135>0,IF($V135>0,$V135,0),0) -> 0 | AC135: =IF(($AB135+$AD135+$AF135+$AH135)>($V135+1),AB135/2,AB135) -> 0 | AD135: =IF(L135>0,IF($V135>0,$V135,0),0) -> 0 | AE135: =IF(($AB135+$AD135+$AF135+$AH135)>($V135+1),AD135/2,AD135) -> 0 | AF135: =IF(N135>0,IF($V135>0,$V135,0),0) -> 0 | AG135: =IF(($AB135+$AD135+$AF135+$AH135)>($V135+1),AF135/2,AF135) -> 0 | AH135: =IF(P135>0,IF($V135>0,$V135,0),0) -> 0 | AI135: =IF(($AB135+$AD135+$AF135+$AH135)>($V135+1),AH135/2,AH135) -> 0 | AK135: =IF($A135=AK$6,+$J135+$L135+$N135+$P135,"") -> 
G136: =IFERROR(I136+K136+M136+O136+Q136+S136+U136,0) -> 1 | H136: =SUM(H132:H135) -> 5365000 | I136: =J136/$H136 -> 0 | J136: =SUM(J132:J135) -> 0 | K136: =L136/$H136 -> 0 | L136: =SUM(L132:L135) -> 0 | M136: =N136/$H136 -> 0 | N136: =SUM(N132:N135) -> 0 | O136: =P136/$H136 -> 0 | P136: =SUM(P132:P135) -> 0 | Q136: =R136/$H136 -> 1 | R136: =SUM(R132:R135) -> 5365000 | S136: =T136/$H136 -> 0 | T136: =SUM(T132:T135) -> 0 | V136: =SUM(V132:V135) -> 0
B138: 10 | C138: Ventilation | G138: =I138+K138+M138+O138+Q138+S138+U138 -> 0 | H138: =E138*F138 -> 0 | J138: =IF(I138=0,0,SUM($H138*I138)) -> 0 | L138: =IF(K138=0,0,SUM($H138*K138)) -> 0 | N138: =IF(M138=0,0,SUM($H138*M138)) -> 0 | P138: =IF(O138=0,0,SUM($H138*O138)) -> 0 | R138: =IF(Q138=0,0,SUM($H138*Q138)) -> 0 | T138: =IF(S138=0,0,SUM($H138*S138)) -> 0 | V138: =IF(S138+Q138>0.5,0,IF(Q138<0.51,IF(S138<0.51,+R138+T138,+R138),IF(S138<0.51,T138,0))) -> 0 | AB138: =IF(J138>0,IF($V138>0,$V138,0),0) -> 0 | AC138: =IF(($AB138+$AD138+$AF138+$AH138)>($V138+1),AB138/2,AB138) -> 0 | AD138: =IF(L138>0,IF($V138>0,$V138,0),0) -> 0 | AE138: =IF(($AB138+$AD138+$AF138+$AH138)>($V138+1),AD138/2,AD138) -> 0 | AF138: =IF(N138>0,IF($V138>0,$V138,0),0) -> 0 | AG138: =IF(($AB138+$AD138+$AF138+$AH138)>($V138+1),AF138/2,AF138) -> 0 | AH138: =IF(P138>0,IF($V138>0,$V138,0),0) -> 0 | AI138: =IF(($AB138+$AD138+$AF138+$AH138)>($V138+1),AH138/2,AH138) -> 0 | AK138: =IF($A138=AK$6,+$J138+$L138+$N138+$P138,"") ->  | AL138: =IF($A138=AL$6,+$J138+$L138+$N138+$P138,"") ->  | AY138: =IF($A138=AY$6,+$R138+$T138,"") -> 
A139: 9 | C139: Ventilation (ballanceret ventilationanlæg inkl. installation, rør mv.) | D139: stk. | E139: 174 | F139: 48500 | G139: =I139+K139+M139+O139+Q139+S139+U139 -> 1 | H139: =E139*F139 -> 8439000 | I139: 0.75 | J139: =IF(I139=0,0,SUM($H139*I139)) -> 6329250 | L139: =IF(K139=0,0,SUM($H139*K139)) -> 0 | N139: =IF(M139=0,0,SUM($H139*M139)) -> 0 | P139: =IF(O139=0,0,SUM($H139*O139)) -> 0 | Q139: 0.25 | R139: =IF(Q139=0,0,SUM($H139*Q139)) -> 2109750 | T139: =IF(S139=0,0,SUM($H139*S139)) -> 0 | V139: =IF(S139+Q139>0.5,0,IF(Q139<0.51,IF(S139<0.51,+R139+T139,+R139),IF(S139<0.51,T139,0))) -> 2109750 | AB139: =IF(J139>0,IF($V139>0,$V139,0),0) -> 2109750 | AC139: =IF(($AB139+$AD139+$AF139+$AH139)>($V139+1),AB139/2,AB139) -> 2109750 | AD139: =IF(L139>0,IF($V139>0,$V139,0),0) -> 0 | AE139: =IF(($AB139+$AD139+$AF139+$AH139)>($V139+1),AD139/2,AD139) -> 0 | AF139: =IF(N139>0,IF($V139>0,$V139,0),0) -> 0 | AG139: =IF(($AB139+$AD139+$AF139+$AH139)>($V139+1),AF139/2,AF139) -> 0 | AH139: =IF(P139>0,IF($V139>0,$V139,0),0) -> 0 | AI139: =IF(($AB139+$AD139+$AF139+$AH139)>($V139+1),AH139/2,AH139) -> 0 | AK139: =IF($A139=AK$6,+$J139+$L139+$N139+$P139,"") ->  | AS139: 6329250 | BG139: 2109750
A140: 9 | C140: Varmeflade til ventilationanlæg inkl. rørføring mv. | D140: stk. | E140: 174 | F140: 6500 | G140: =I140+K140+M140+O140+Q140+S140+U140 -> 1 | H140: =E140*F140 -> 1131000 | J140: =IF(I140=0,0,SUM($H140*I140)) -> 0 | L140: =IF(K140=0,0,SUM($H140*K140)) -> 0 | N140: =IF(M140=0,0,SUM($H140*M140)) -> 0 | P140: =IF(O140=0,0,SUM($H140*O140)) -> 0 | Q140: 1 | R140: =IF(Q140=0,0,SUM($H140*Q140)) -> 1131000 | T140: =IF(S140=0,0,SUM($H140*S140)) -> 0 | V140: =IF(S140+Q140>0.5,0,IF(Q140<0.51,IF(S140<0.51,+R140+T140,+R140),IF(S140<0.51,T140,0))) -> 0 | AB140: =IF(J140>0,IF($V140>0,$V140,0),0) -> 0 | AC140: =IF(($AB140+$AD140+$AF140+$AH140)>($V140+1),AB140/2,AB140) -> 0 | AD140: =IF(L140>0,IF($V140>0,$V140,0),0) -> 0 | AE140: =IF(($AB140+$AD140+$AF140+$AH140)>($V140+1),AD140/2,AD140) -> 0 | AF140: =IF(N140>0,IF($V140>0,$V140,0),0) -> 0 | AG140: =IF(($AB140+$AD140+$AF140+$AH140)>($V140+1),AF140/2,AF140) -> 0 | AH140: =IF(P140>0,IF($V140>0,$V140,0),0) -> 0 | AI140: =IF(($AB140+$AD140+$AF140+$AH140)>($V140+1),AH140/2,AH140) -> 0 | AK140: =IF($A140=AK$6,+$J140+$L140+$N140+$P140,"") ->  | AS140: 0 | BG140: 1131000
G141: =I141+K141+M141+O141+Q141+S141+U141 -> 0 | H141: =E141*F141 -> 0 | J141: =IF(I141=0,0,SUM($H141*I141)) -> 0 | L141: =IF(K141=0,0,SUM($H141*K141)) -> 0 | N141: =IF(M141=0,0,SUM($H141*M141)) -> 0 | P141: =IF(O141=0,0,SUM($H141*O141)) -> 0 | R141: =IF(Q141=0,0,SUM($H141*Q141)) -> 0 | T141: =IF(S141=0,0,SUM($H141*S141)) -> 0 | V141: =IF(S141+Q141>0.5,0,IF(Q141<0.51,IF(S141<0.51,+R141+T141,+R141),IF(S141<0.51,T141,0))) -> 0 | AB141: =IF(J141>0,IF($V141>0,$V141,0),0) -> 0 | AC141: =IF(($AB141+$AD141+$AF141+$AH141)>($V141+1),AB141/2,AB141) -> 0 | AD141: =IF(L141>0,IF($V141>0,$V141,0),0) -> 0 | AE141: =IF(($AB141+$AD141+$AF141+$AH141)>($V141+1),AD141/2,AD141) -> 0 | AF141: =IF(N141>0,IF($V141>0,$V141,0),0) -> 0 | AG141: =IF(($AB141+$AD141+$AF141+$AH141)>($V141+1),AF141/2,AF141) -> 0 | AH141: =IF(P141>0,IF($V141>0,$V141,0),0) -> 0 | AI141: =IF(($AB141+$AD141+$AF141+$AH141)>($V141+1),AH141/2,AH141) -> 0 | AK141: =IF($A141=AK$6,+$J141+$L141+$N141+$P141,"") -> 
G142: =IFERROR(I142+K142+M142+O142+Q142+S142+U142,0) -> 1 | H142: =SUM(H138:H141) -> 9570000 | I142: =J142/$H142 -> 0.6613636364 | J142: =SUM(J138:J141) -> 6329250 | K142: =L142/$H142 -> 0 | L142: =SUM(L138:L141) -> 0 | M142: =N142/$H142 -> 0 | N142: =SUM(N138:N141) -> 0 | O142: =P142/$H142 -> 0 | P142: =SUM(P138:P141) -> 0 | Q142: =R142/$H142 -> 0.3386363636 | R142: =SUM(R138:R141) -> 3240750 | S142: =T142/$H142 -> 0 | T142: =SUM(T138:T141) -> 0 | V142: =SUM(V138:V141) -> 2109750
B144: 11 | C144: Kloak og Dræn | G144: =I144+K144+M144+O144+Q144+S144+U144 -> 0 | H144: =E144*F144 -> 0 | J144: =IF(I144=0,0,SUM($H144*I144)) -> 0 | L144: =IF(K144=0,0,SUM($H144*K144)) -> 0 | N144: =IF(M144=0,0,SUM($H144*M144)) -> 0 | P144: =IF(O144=0,0,SUM($H144*O144)) -> 0 | R144: =IF(Q144=0,0,SUM($H144*Q144)) -> 0 | T144: =IF(S144=0,0,SUM($H144*S144)) -> 0 | V144: =IF(S144+Q144>0.5,0,IF(Q144<0.51,IF(S144<0.51,+R144+T144,+R144),IF(S144<0.51,T144,0))) -> 0 | AB144: =IF(J144>0,IF($V144>0,$V144,0),0) -> 0 | AC144: =IF(($AB144+$AD144+$AF144+$AH144)>($V144+1),AB144/2,AB144) -> 0 | AD144: =IF(L144>0,IF($V144>0,$V144,0),0) -> 0 | AE144: =IF(($AB144+$AD144+$AF144+$AH144)>($V144+1),AD144/2,AD144) -> 0 | AF144: =IF(N144>0,IF($V144>0,$V144,0),0) -> 0 | AG144: =IF(($AB144+$AD144+$AF144+$AH144)>($V144+1),AF144/2,AF144) -> 0 | AH144: =IF(P144>0,IF($V144>0,$V144,0),0) -> 0 | AI144: =IF(($AB144+$AD144+$AF144+$AH144)>($V144+1),AH144/2,AH144) -> 0 | AK144: =IF($A144=AK$6,+$J144+$L144+$N144+$P144,"") ->  | AL144: =IF($A144=AL$6,+$J144+$L144+$N144+$P144,"") ->  | AY144: =IF($A144=AY$6,+$R144+$T144,"") -> 
A145: 9 | C145: Udskiftning og rep. af eksisterende kloaksystem | D145: stk. | E145: 5 | F145: 400000 | G145: =I145+K145+M145+O145+Q145+S145+U145 -> 1 | H145: =E145*F145 -> 2000000 | J145: =IF(I145=0,0,SUM($H145*I145)) -> 0 | L145: =IF(K145=0,0,SUM($H145*K145)) -> 0 | N145: =IF(M145=0,0,SUM($H145*M145)) -> 0 | P145: =IF(O145=0,0,SUM($H145*O145)) -> 0 | R145: =IF(Q145=0,0,SUM($H145*Q145)) -> 0 | S145: 1 | T145: =IF(S145=0,0,SUM($H145*S145)) -> 2000000 | V145: =IF(S145+Q145>0.5,0,IF(Q145<0.51,IF(S145<0.51,+R145+T145,+R145),IF(S145<0.51,T145,0))) -> 0 | AB145: =IF(J145>0,IF($V145>0,$V145,0),0) -> 0 | AC145: =IF(($AB145+$AD145+$AF145+$AH145)>($V145+1),AB145/2,AB145) -> 0 | AD145: =IF(L145>0,IF($V145>0,$V145,0),0) -> 0 | AE145: =IF(($AB145+$AD145+$AF145+$AH145)>($V145+1),AD145/2,AD145) -> 0 | AF145: =IF(N145>0,IF($V145>0,$V145,0),0) -> 0 | AG145: =IF(($AB145+$AD145+$AF145+$AH145)>($V145+1),AF145/2,AF145) -> 0 | AH145: =IF(P145>0,IF($V145>0,$V145,0),0) -> 0 | AI145: =IF(($AB145+$AD145+$AF145+$AH145)>($V145+1),AH145/2,AH145) -> 0 | AS145: 0 | BG145: 2000000
A146: 9 | C146: Etablering af LAR | D146: stk. | E146: 5 | F146: 300000 | G146: 1 | H146: 1500000 | J146: 0 | L146: 0 | N146: 0 | P146: 0 | Q146: 1 | R146: 1500000 | T146: 0 | V146: 0 | AB146: 0 | AC146: 0 | AD146: 0 | AE146: 0 | AF146: 0 | AG146: 0 | AH146: 0 | AI146: 0 | AS146: 0 | BG146: 1500000
G147: 0 | H147: 0 | J147: 0 | L147: 0 | N147: 0 | P147: 0 | R147: 0 | T147: 0 | V147: 0 | AB147: 0 | AC147: 0 | AD147: 0 | AE147: 0 | AF147: 0 | AG147: 0 | AH147: 0 | AI147: 0
G148: =IFERROR(I148+K148+M148+O148+Q148+S148+U148,0) -> 1 | H148: =SUM(H144:H147) -> 3500000 | I148: =J148/$H148 -> 0 | J148: =SUM(J144:J147) -> 0 | K148: =L148/$H148 -> 0 | L148: =SUM(L144:L147) -> 0 | M148: =N148/$H148 -> 0 | N148: =SUM(N144:N147) -> 0 | O148: =P148/$H148 -> 0 | P148: =SUM(P144:P147) -> 0 | Q148: =R148/$H148 -> 0.4285714286 | R148: =SUM(R144:R147) -> 1500000 | S148: =T148/$H148 -> 0.5714285714 | T148: =SUM(T144:T147) -> 2000000 | V148: =SUM(V144:V147) -> 0
B150: 12 | C150: Udearealer samlet | G150: =I150+K150+M150+O150+Q150+S150+U150 -> 0 | H150: =E150*F150 -> 0 | J150: =IF(I150=0,0,SUM($H150*I150)) -> 0 | L150: =IF(K150=0,0,SUM($H150*K150)) -> 0 | N150: =IF(M150=0,0,SUM($H150*M150)) -> 0 | P150: =IF(O150=0,0,SUM($H150*O150)) -> 0 | R150: =IF(Q150=0,0,SUM($H150*Q150)) -> 0 | T150: =IF(S150=0,0,SUM($H150*S150)) -> 0 | V150: =IF(S150+Q150>0.5,0,IF(Q150<0.51,IF(S150<0.51,+R150+T150,+R150),IF(S150<0.51,T150,0))) -> 0 | AB150: =IF(J150>0,IF($V150>0,$V150,0),0) -> 0 | AC150: =IF(($AB150+$AD150+$AF150+$AH150)>($V150+1),AB150/2,AB150) -> 0 | AD150: =IF(L150>0,IF($V150>0,$V150,0),0) -> 0 | AE150: =IF(($AB150+$AD150+$AF150+$AH150)>($V150+1),AD150/2,AD150) -> 0 | AF150: =IF(N150>0,IF($V150>0,$V150,0),0) -> 0 | AG150: =IF(($AB150+$AD150+$AF150+$AH150)>($V150+1),AF150/2,AF150) -> 0 | AH150: =IF(P150>0,IF($V150>0,$V150,0),0) -> 0 | AI150: =IF(($AB150+$AD150+$AF150+$AH150)>($V150+1),AH150/2,AH150) -> 0 | AK150: =IF($A150=AK$6,+$J150+$L150+$N150+$P150,"") ->  | AL150: =IF($A150=AL$6,+$J150+$L150+$N150+$P150,"") ->  | AY150: =IF($A150=AY$6,+$R150+$T150,"") -> 
A151: 10 | C151: Retablering af terræn og beplantning efter renovering | D151: stk. | E151: 1 | F151: 1100000 | G151: =I151+K151+M151+O151+Q151+S151+U151 -> 1 | H151: =E151*F151 -> 1100000 | I151: 0.75 | J151: =IF(I151=0,0,SUM($H151*I151)) -> 825000 | L151: =IF(K151=0,0,SUM($H151*K151)) -> 0 | N151: =IF(M151=0,0,SUM($H151*M151)) -> 0 | P151: =IF(O151=0,0,SUM($H151*O151)) -> 0 | R151: =IF(Q151=0,0,SUM($H151*Q151)) -> 0 | S151: 0.25 | T151: =IF(S151=0,0,SUM($H151*S151)) -> 275000 | V151: =IF(S151+Q151>0.5,0,IF(Q151<0.51,IF(S151<0.51,+R151+T151,+R151),IF(S151<0.51,T151,0))) -> 275000 | AB151: =IF(J151>0,IF($V151>0,$V151,0),0) -> 275000 | AC151: =IF(($AB151+$AD151+$AF151+$AH151)>($V151+1),AB151/2,AB151) -> 275000 | AD151: =IF(L151>0,IF($V151>0,$V151,0),0) -> 0 | AE151: =IF(($AB151+$AD151+$AF151+$AH151)>($V151+1),AD151/2,AD151) -> 0 | AF151: =IF(N151>0,IF($V151>0,$V151,0),0) -> 0 | AG151: =IF(($AB151+$AD151+$AF151+$AH151)>($V151+1),AF151/2,AF151) -> 0 | AH151: =IF(P151>0,IF($V151>0,$V151,0),0) -> 0 | AI151: =IF(($AB151+$AD151+$AF151+$AH151)>($V151+1),AH151/2,AH151) -> 0 | AT151: 825000 | BH151: 275000
A152: 10 | C152: Indretning af pladser for ophold, leg og aktiviteter | D152: stk. | E152: 8 | F152: 260000 | G152: 1 | H152: 2080000 | J152: 0 | K152: 1 | L152: 2080000 | N152: 0 | P152: 0 | R152: 0 | T152: 0 | V152: 0 | AB152: 0 | AC152: 0 | AD152: 0 | AE152: 0 | AF152: 0 | AG152: 0 | AH152: 0 | AI152: 0 | AT152: 2080000 | BH152: 0
A153: 10 | C153: private haver til boliger stueetage | D153: stk. | E153: 58 | F153: 15000 | G153: 1 | H153: 870000 | J153: 0 | K153: 1 | L153: 870000 | N153: 0 | P153: 0 | R153: 0 | T153: 0 | V153: 0 | AB153: 0 | AC153: 0 | AD153: 0 | AE153: 0 | AF153: 0 | AG153: 0 | AH153: 0 | AI153: 0 | AT153: 870000 | BH153: 0
A154: 10 | C154: Ramper i terræn for tilgængelighed | D154: stk. | E154: 4 | F154: 75000 | G154: 1 | H154: 300000 | J154: 0 | L154: 0 | N154: 0 | O154: 1 | P154: 300000 | R154: 0 | T154: 0 | V154: 0 | AB154: 0 | AC154: 0 | AD154: 0 | AE154: 0 | AF154: 0 | AG154: 0 | AH154: 0 | AI154: 0 | AT154: 300000 | BH154: 0
A155: 10 | C155: Ændringer og forbedring af p-pladsen | D155: stk. | E155: 3 | F155: 600000 | G155: =I155+K155+M155+O155+Q155+S155+U155 -> 1 | H155: =E155*F155 -> 1800000 | J155: =IF(I155=0,0,SUM($H155*I155)) -> 0 | L155: =IF(K155=0,0,SUM($H155*K155)) -> 0 | N155: =IF(M155=0,0,SUM($H155*M155)) -> 0 | P155: =IF(O155=0,0,SUM($H155*O155)) -> 0 | Q155: 0.5 | R155: =IF(Q155=0,0,SUM($H155*Q155)) -> 900000 | S155: 0.5 | T155: =IF(S155=0,0,SUM($H155*S155)) -> 900000 | V155: =IF(S155+Q155>0.5,0,IF(Q155<0.51,IF(S155<0.51,+R155+T155,+R155),IF(S155<0.51,T155,0))) -> 0 | AB155: =IF(J155>0,IF($V155>0,$V155,0),0) -> 0 | AC155: =IF(($AB155+$AD155+$AF155+$AH155)>($V155+1),AB155/2,AB155) -> 0 | AD155: =IF(L155>0,IF($V155>0,$V155,0),0) -> 0 | AE155: =IF(($AB155+$AD155+$AF155+$AH155)>($V155+1),AD155/2,AD155) -> 0 | AF155: =IF(N155>0,IF($V155>0,$V155,0),0) -> 0 | AG155: =IF(($AB155+$AD155+$AF155+$AH155)>($V155+1),AF155/2,AF155) -> 0 | AH155: =IF(P155>0,IF($V155>0,$V155,0),0) -> 0 | AI155: =IF(($AB155+$AD155+$AF155+$AH155)>($V155+1),AH155/2,AH155) -> 0 | AT155: 0 | BH155: 1800000
A156: 10 | C156: Omlægning af belægninger | D156: stk. | E156: 1 | F156: 750000 | G156: 1 | H156: 750000 | J156: 0 | L156: 0 | N156: 0 | P156: 0 | R156: 0 | S156: 1 | T156: 750000 | V156: 0 | AB156: 0 | AC156: 0 | AD156: 0 | AE156: 0 | AF156: 0 | AG156: 0 | AH156: 0 | AI156: 0 | AT156: 0 | BH156: 750000
A157: 10 | C157: Kriminalpræventiv belysning | D157: stk. | E157: 1 | F157: 550000 | G157: =I157+K157+M157+O157+Q157+S157+U157 -> 1 | H157: =E157*F157 -> 550000 | J157: =IF(I157=0,0,SUM($H157*I157)) -> 0 | K157: 1 | L157: =IF(K157=0,0,SUM($H157*K157)) -> 550000 | N157: =IF(M157=0,0,SUM($H157*M157)) -> 0 | P157: =IF(O157=0,0,SUM($H157*O157)) -> 0 | R157: =IF(Q157=0,0,SUM($H157*Q157)) -> 0 | T157: =IF(S157=0,0,SUM($H157*S157)) -> 0 | V157: =IF(S157+Q157>0.5,0,IF(Q157<0.51,IF(S157<0.51,+R157+T157,+R157),IF(S157<0.51,T157,0))) -> 0 | AB157: =IF(J157>0,IF($V157>0,$V157,0),0) -> 0 | AC157: =IF(($AB157+$AD157+$AF157+$AH157)>($V157+1),AB157/2,AB157) -> 0 | AD157: =IF(L157>0,IF($V157>0,$V157,0),0) -> 0 | AE157: =IF(($AB157+$AD157+$AF157+$AH157)>($V157+1),AD157/2,AD157) -> 0 | AF157: =IF(N157>0,IF($V157>0,$V157,0),0) -> 0 | AG157: =IF(($AB157+$AD157+$AF157+$AH157)>($V157+1),AF157/2,AF157) -> 0 | AH157: =IF(P157>0,IF($V157>0,$V157,0),0) -> 0 | AI157: =IF(($AB157+$AD157+$AF157+$AH157)>($V157+1),AH157/2,AH157) -> 0 | AT157: 550000 | BH157: 0
G158: 0 | H158: 0 | J158: 0 | L158: 0 | N158: 0 | P158: 0 | R158: 0 | T158: 0 | V158: 0 | AB158: 0 | AC158: 0 | AD158: 0 | AE158: 0 | AF158: 0 | AG158: 0 | AH158: 0 | AI158: 0
G159: =IFERROR(I159+K159+M159+O159+Q159+S159+U159,0) -> 1 | H159: =SUM(H150:H158) -> 7450000 | I159: =J159/$H159 -> 0.110738255 | J159: =SUM(J150:J158) -> 825000 | K159: =L159/$H159 -> 0.4697986577 | L159: =SUM(L150:L158) -> 3500000 | M159: =N159/$H159 -> 0 | N159: =SUM(N150:N158) -> 0 | O159: =P159/$H159 -> 0.04026845638 | P159: =SUM(P150:P158) -> 300000 | Q159: =R159/$H159 -> 0.1208053691 | R159: =SUM(R150:R158) -> 900000 | S159: =T159/$H159 -> 0.2583892617 | T159: =SUM(T150:T158) -> 1925000 | V159: =SUM(V150:V158) -> 275000
B161: 13 | C161: Fælleslokale | G161: =I161+K161+M161+O161+Q161+S161+U161 -> 0 | H161: =E161*F161 -> 0 | J161: =IF(I161=0,0,SUM($H161*I161)) -> 0 | L161: =IF(K161=0,0,SUM($H161*K161)) -> 0 | N161: =IF(M161=0,0,SUM($H161*M161)) -> 0 | P161: =IF(O161=0,0,SUM($H161*O161)) -> 0 | R161: =IF(Q161=0,0,SUM($H161*Q161)) -> 0 | T161: =IF(S161=0,0,SUM($H161*S161)) -> 0 | V161: =IF(S161+Q161>0.5,0,IF(Q161<0.51,IF(S161<0.51,+R161+T161,+R161),IF(S161<0.51,T161,0))) -> 0 | AB161: =IF(J161>0,IF($V161>0,$V161,0),0) -> 0 | AC161: =IF(($AB161+$AD161+$AF161+$AH161)>($V161+1),AB161/2,AB161) -> 0 | AD161: =IF(L161>0,IF($V161>0,$V161,0),0) -> 0 | AE161: =IF(($AB161+$AD161+$AF161+$AH161)>($V161+1),AD161/2,AD161) -> 0 | AF161: =IF(N161>0,IF($V161>0,$V161,0),0) -> 0 | AG161: =IF(($AB161+$AD161+$AF161+$AH161)>($V161+1),AF161/2,AF161) -> 0 | AH161: =IF(P161>0,IF($V161>0,$V161,0),0) -> 0 | AI161: =IF(($AB161+$AD161+$AF161+$AH161)>($V161+1),AH161/2,AH161) -> 0 | AK161: =IF($A161=AK$6,+$J161+$L161+$N161+$P161,"") ->  | AL161: =IF($A161=AL$6,+$J161+$L161+$N161+$P161,"") ->  | AY161: =IF($A161=AY$6,+$R161+$T161,"") -> 
A162: 11 | C162: Indretning af fælleslokaler i gl. servicebygning | D162: stk. | E162: 1 | F162: 550000 | G162: =I162+K162+M162+O162+Q162+S162+U162 -> 1 | H162: =E162*F162 -> 550000 | J162: =IF(I162=0,0,SUM($H162*I162)) -> 0 | K162: 1 | L162: =IF(K162=0,0,SUM($H162*K162)) -> 550000 | N162: =IF(M162=0,0,SUM($H162*M162)) -> 0 | P162: =IF(O162=0,0,SUM($H162*O162)) -> 0 | R162: =IF(Q162=0,0,SUM($H162*Q162)) -> 0 | T162: =IF(S162=0,0,SUM($H162*S162)) -> 0 | V162: =IF(S162+Q162>0.5,0,IF(Q162<0.51,IF(S162<0.51,+R162+T162,+R162),IF(S162<0.51,T162,0))) -> 0 | AB162: =IF(J162>0,IF($V162>0,$V162,0),0) -> 0 | AC162: =IF(($AB162+$AD162+$AF162+$AH162)>($V162+1),AB162/2,AB162) -> 0 | AD162: =IF(L162>0,IF($V162>0,$V162,0),0) -> 0 | AE162: =IF(($AB162+$AD162+$AF162+$AH162)>($V162+1),AD162/2,AD162) -> 0 | AF162: =IF(N162>0,IF($V162>0,$V162,0),0) -> 0 | AG162: =IF(($AB162+$AD162+$AF162+$AH162)>($V162+1),AF162/2,AF162) -> 0 | AH162: =IF(P162>0,IF($V162>0,$V162,0),0) -> 0 | AI162: =IF(($AB162+$AD162+$AF162+$AH162)>($V162+1),AH162/2,AH162) -> 0 | AU162: 550000 | BI162: 0
G163: 0 | H163: 0 | J163: 0 | L163: 0 | N163: 0 | P163: 0 | R163: 0 | T163: 0 | V163: 0 | AB163: 0 | AC163: 0 | AD163: 0 | AE163: 0 | AF163: 0 | AG163: 0 | AH163: 0 | AI163: 0
G164: =IFERROR(I164+K164+M164+O164+Q164+S164+U164,0) -> 1 | H164: =SUM(H161:H163) -> 550000 | I164: =J164/$H164 -> 0 | J164: =SUM(J161:J163) -> 0 | K164: =L164/$H164 -> 1 | L164: =SUM(L161:L163) -> 550000 | M164: =N164/$H164 -> 0 | N164: =SUM(N161:N163) -> 0 | O164: =P164/$H164 -> 0 | P164: =SUM(P161:P163) -> 0 | Q164: =R164/$H164 -> 0 | R164: =SUM(R161:R163) -> 0 | S164: =T164/$H164 -> 0 | T164: =SUM(T161:T163) -> 0 | V164: =SUM(V161:V163) -> 0
B166: 14 | C166: Servicebygning mv. | G166: =I166+K166+M166+O166+Q166+S166+U166 -> 0 | H166: =E166*F166 -> 0 | J166: =IF(I166=0,0,SUM($H166*I166)) -> 0 | L166: =IF(K166=0,0,SUM($H166*K166)) -> 0 | N166: =IF(M166=0,0,SUM($H166*M166)) -> 0 | P166: =IF(O166=0,0,SUM($H166*O166)) -> 0 | R166: =IF(Q166=0,0,SUM($H166*Q166)) -> 0 | T166: =IF(S166=0,0,SUM($H166*S166)) -> 0 | V166: =IF(S166+Q166>0.5,0,IF(Q166<0.51,IF(S166<0.51,+R166+T166,+R166),IF(S166<0.51,T166,0))) -> 0 | AB166: =IF(J166>0,IF($V166>0,$V166,0),0) -> 0 | AC166: =IF(($AB166+$AD166+$AF166+$AH166)>($V166+1),AB166/2,AB166) -> 0 | AD166: =IF(L166>0,IF($V166>0,$V166,0),0) -> 0 | AE166: =IF(($AB166+$AD166+$AF166+$AH166)>($V166+1),AD166/2,AD166) -> 0 | AF166: =IF(N166>0,IF($V166>0,$V166,0),0) -> 0 | AG166: =IF(($AB166+$AD166+$AF166+$AH166)>($V166+1),AF166/2,AF166) -> 0 | AH166: =IF(P166>0,IF($V166>0,$V166,0),0) -> 0 | AI166: =IF(($AB166+$AD166+$AF166+$AH166)>($V166+1),AH166/2,AH166) -> 0 | AK166: =IF($A166=AK$6,+$J166+$L166+$N166+$P166,"") ->  | AL166: =IF($A166=AL$6,+$J166+$L166+$N166+$P166,"") ->  | AY166: =IF($A166=AY$6,+$R166+$T166,"") -> 
A167: 11 | C167: Etablering af ny servicebygning | D167: stk. | E167: 1 | F167: 1300000 | G167: =I167+K167+M167+O167+Q167+S167+U167 -> 1 | H167: =E167*F167 -> 1300000 | J167: =IF(I167=0,0,SUM($H167*I167)) -> 0 | L167: =IF(K167=0,0,SUM($H167*K167)) -> 0 | N167: =IF(M167=0,0,SUM($H167*M167)) -> 0 | P167: =IF(O167=0,0,SUM($H167*O167)) -> 0 | Q167: 1 | R167: =IF(Q167=0,0,SUM($H167*Q167)) -> 1300000 | T167: =IF(S167=0,0,SUM($H167*S167)) -> 0 | V167: =IF(S167+Q167>0.5,0,IF(Q167<0.51,IF(S167<0.51,+R167+T167,+R167),IF(S167<0.51,T167,0))) -> 0 | AB167: =IF(J167>0,IF($V167>0,$V167,0),0) -> 0 | AC167: =IF(($AB167+$AD167+$AF167+$AH167)>($V167+1),AB167/2,AB167) -> 0 | AD167: =IF(L167>0,IF($V167>0,$V167,0),0) -> 0 | AE167: =IF(($AB167+$AD167+$AF167+$AH167)>($V167+1),AD167/2,AD167) -> 0 | AF167: =IF(N167>0,IF($V167>0,$V167,0),0) -> 0 | AG167: =IF(($AB167+$AD167+$AF167+$AH167)>($V167+1),AF167/2,AF167) -> 0 | AH167: =IF(P167>0,IF($V167>0,$V167,0),0) -> 0 | AI167: =IF(($AB167+$AD167+$AF167+$AH167)>($V167+1),AH167/2,AH167) -> 0 | AU167: 0 | BI167: 1300000
A168: 11 | C168: Etablering af miljøstationer | D168: stk. | E168: 8 | F168: 45000 | G168: 1 | H168: 360000 | J168: 0 | L168: 0 | N168: 0 | P168: 0 | Q168: 1 | R168: 360000 | T168: 0 | V168: 0 | AB168: 0 | AC168: 0 | AD168: 0 | AE168: 0 | AF168: 0 | AG168: 0 | AH168: 0 | AI168: 0 | AU168: 0 | BI168: 360000
G169: 0 | H169: 0 | J169: 0 | L169: 0 | N169: 0 | P169: 0 | R169: 0 | T169: 0 | V169: 0 | AB169: 0 | AC169: 0 | AD169: 0 | AE169: 0 | AF169: 0 | AG169: 0 | AH169: 0 | AI169: 0
G170: =IFERROR(I170+K170+M170+O170+Q170+S170+U170,0) -> 1 | H170: =SUM(H166:H169) -> 1660000 | I170: =J170/$H170 -> 0 | J170: =SUM(J166:J169) -> 0 | K170: =L170/$H170 -> 0 | L170: =SUM(L166:L169) -> 0 | M170: =N170/$H170 -> 0 | N170: =SUM(N166:N169) -> 0 | O170: =P170/$H170 -> 0 | P170: =SUM(P166:P169) -> 0 | Q170: =R170/$H170 -> 1 | R170: =SUM(R166:R169) -> 1660000 | S170: =T170/$H170 -> 0 | T170: =SUM(T166:T169) -> 0 | V170: =SUM(V166:V169) -> 0
B172: 15 | C172: Emne | G172: =I172+K172+M172+O172+Q172+S172+U172 -> 0 | H172: =E172*F172 -> 0 | J172: =IF(I172=0,0,SUM($H172*I172)) -> 0 | L172: =IF(K172=0,0,SUM($H172*K172)) -> 0 | N172: =IF(M172=0,0,SUM($H172*M172)) -> 0 | P172: =IF(O172=0,0,SUM($H172*O172)) -> 0 | R172: =IF(Q172=0,0,SUM($H172*Q172)) -> 0 | T172: =IF(S172=0,0,SUM($H172*S172)) -> 0 | V172: =IF(S172+Q172>0.5,0,IF(Q172<0.51,IF(S172<0.51,+R172+T172,+R172),IF(S172<0.51,T172,0))) -> 0 | AB172: =IF(J172>0,IF($V172>0,$V172,0),0) -> 0 | AC172: =IF(($AB172+$AD172+$AF172+$AH172)>($V172+1),AB172/2,AB172) -> 0 | AD172: =IF(L172>0,IF($V172>0,$V172,0),0) -> 0 | AE172: =IF(($AB172+$AD172+$AF172+$AH172)>($V172+1),AD172/2,AD172) -> 0 | AF172: =IF(N172>0,IF($V172>0,$V172,0),0) -> 0 | AG172: =IF(($AB172+$AD172+$AF172+$AH172)>($V172+1),AF172/2,AF172) -> 0 | AH172: =IF(P172>0,IF($V172>0,$V172,0),0) -> 0 | AI172: =IF(($AB172+$AD172+$AF172+$AH172)>($V172+1),AH172/2,AH172) -> 0 | AK172: =IF($A172=AK$6,+$J172+$L172+$N172+$P172,"") ->  | AL172: =IF($A172=AL$6,+$J172+$L172+$N172+$P172,"") ->  | AY172: =IF($A172=AY$6,+$R172+$T172,"") -> 
G173: =I173+K173+M173+O173+Q173+S173+U173 -> 0 | H173: =E173*F173 -> 0 | J173: =IF(I173=0,0,SUM($H173*I173)) -> 0 | L173: =IF(K173=0,0,SUM($H173*K173)) -> 0 | N173: =IF(M173=0,0,SUM($H173*M173)) -> 0 | P173: =IF(O173=0,0,SUM($H173*O173)) -> 0 | R173: =IF(Q173=0,0,SUM($H173*Q173)) -> 0 | T173: =IF(S173=0,0,SUM($H173*S173)) -> 0 | V173: =IF(S173+Q173>0.5,0,IF(Q173<0.51,IF(S173<0.51,+R173+T173,+R173),IF(S173<0.51,T173,0))) -> 0 | AB173: =IF(J173>0,IF($V173>0,$V173,0),0) -> 0 | AC173: =IF(($AB173+$AD173+$AF173+$AH173)>($V173+1),AB173/2,AB173) -> 0 | AD173: =IF(L173>0,IF($V173>0,$V173,0),0) -> 0 | AE173: =IF(($AB173+$AD173+$AF173+$AH173)>($V173+1),AD173/2,AD173) -> 0 | AF173: =IF(N173>0,IF($V173>0,$V173,0),0) -> 0 | AG173: =IF(($AB173+$AD173+$AF173+$AH173)>($V173+1),AF173/2,AF173) -> 0 | AH173: =IF(P173>0,IF($V173>0,$V173,0),0) -> 0 | AI173: =IF(($AB173+$AD173+$AF173+$AH173)>($V173+1),AH173/2,AH173) -> 0
G174: 0 | H174: 0 | J174: 0 | L174: 0 | N174: 0 | P174: 0 | R174: 0 | T174: 0 | V174: 0 | AB174: 0 | AC174: 0 | AD174: 0 | AE174: 0 | AF174: 0 | AG174: 0 | AH174: 0 | AI174: 0
G175: =IFERROR(I175+K175+M175+O175+Q175+S175+U175,0) -> 0 | H175: =SUM(H172:H174) -> 0 | I175: =J175/$H175 ->  | J175: =SUM(J172:J174) -> 0 | K175: =L175/$H175 ->  | L175: =SUM(L172:L174) -> 0 | M175: =N175/$H175 ->  | N175: =SUM(N172:N174) -> 0 | O175: =P175/$H175 ->  | P175: =SUM(P172:P174) -> 0 | Q175: =R175/$H175 ->  | R175: =SUM(R172:R174) -> 0 | S175: =T175/$H175 ->  | T175: =SUM(T172:T174) -> 0 | V175: =SUM(V172:V174) -> 0
C178: Håndværkerudgift i alt inkl. moms | H178: =SUM(H7:H176)/2 -> 102593465 | J178: =SUM(J7:J176)/2 -> 16451837.5 | L178: =SUM(L7:L176)/2 -> 4050000 | N178: =SUM(N7:N176)/2 -> 1061280 | P178: =SUM(P7:P176)/2 -> 9790480 | R178: =SUM(R7:R176)/2 -> 56593015 | T178: =SUM(T7:T176)/2 -> 14244852.5 | V178: =SUM(V7:V176)/2 -> 8753990 | W178: =J178+L178+N178+P178 -> 31353597.5 | X178: =R178+T178 -> 70837867.5
C179: Byggepladsomkostninger og vinterforanstaltninger % | D179: 0.06 | H179: =H178*D179 -> 6155607.9 | J179: =J178*$D179 -> 987110.25 | L179: =L178*$D179 -> 243000 | N179: =N178*$D179 -> 63676.8 | P179: =P178*$D179 -> 587428.8 | R179: =R178*$D179 -> 3395580.9 | T179: =T178*$D179 -> 854691.15 | V179: =V178*$D179 -> 525239.4
C180: Håndværkerudgift i alt inkl. byggeplads og moms | H180: =SUM(H178:H179) -> 108749072.9 | J180: =SUM(J178:J179) -> 17438947.75 | L180: =SUM(L178:L179) -> 4293000 | N180: =SUM(N178:N179) -> 1124956.8 | P180: =SUM(P178:P179) -> 10377908.8 | R180: =SUM(R178:R179) -> 59988595.9 | T180: =SUM(T178:T179) -> 15099543.65 | V180: =SUM(V178:V179) -> 9279229.4
C182: Omkostninger % (skal detaljeres inden skema A) | D182: 0.19 | H182: =H180*D182 -> 20662323.85 | J182: =J180*$D182 -> 3313400.073 | L182: =L180*$D182 -> 815670 | N182: =N180*$D182 -> 213741.792 | P182: =P180*$D182 -> 1971802.672 | R182: =R180*$D182 -> 11397833.22 | T182: =T180*$D182 -> 2868913.294 | V182: =V180*$D182 -> 1763053.586
C183: Driftsudgifter i byggeperioden | H183: 100000 | J183: =IFERROR($H183*J180/($J180+$N180+$P180),0) -> 60255.2008 | N183: =IFERROR($H183*N180/($J180+$N180+$P180),0) -> 3886.960317 | P183: =IFERROR($H183*P180/($J180+$N180+$P180),0) -> 35857.83888 | V183: =IF(U183=0,0,SUM($H183*U183)) -> 0
C185: Totalsum samt summer af kategorier | G185: =IFERROR(I185+K185+M185+O185+Q185+S185+U185,0) -> 0.9960846473 | H185: =SUM(H180:H183) -> 129511396.8 | I185: =IFERROR(J185/$H185,0) -> 0.1607009386 | J185: =SUM(J180:J183) -> 20812603.02 | K185: =IFERROR(L185/$H185,0) -> 0.03944571774 | L185: =SUM(L180:L183) -> 5108670 | M185: =IFERROR(N185/$H185,0) -> 0.01036654369 | N185: =SUM(N180:N183) -> 1342585.552 | O185: =IFERROR(P185/$H185,0) -> 0.0956330456 | P185: =SUM(P180:P183) -> 12385569.31 | Q185: =IFERROR(R185/$H185,0) -> 0.5511980483 | R185: =SUM(R180:R183) -> 71386429.12 | S185: =IFERROR(T185/$H185,0) -> 0.1387403533 | T185: =SUM(T180:T183) -> 17968456.94 | V185: =SUM(V180:V183) -> 11042282.99 | W185: =SUM(J185:T185) -> 129004314.8
W186: =+V185/V178 -> 1.2614
C188: Nødvendige ustøttede arbejder (Indgår ikke i støttet sum) | J188: =IFERROR(AC6*$W186,0) -> 7908662.65 | L188: =IFERROR(AE6*$W186,0) -> 0 | N188: =IFERROR(AG6*$W186,0) -> 659359.008 | P188: =IFERROR(AI6*$W186,0) -> 2474261.328 | W188: =SUM(J188:P188) -> 11042282.99
C191: Yderligere støttede arbejder
C192: Nedrivning (fra specifikation herunder) | H192: =H216 -> 3000000
C193: Miljø og Klimavenlige løsninger (fra specifikation herunder) | H193: =H225 -> 0
C194: Genhusning (antal boliger x enhedspris) | D194: bolig | E194: 180 | F194: 50000 | H194: =E194*F194 -> 9000000
C195: Lejetab (antal boliger x gns. husleje x mdr.) | D195: bolig | E195: 180 | F195: 20000 | H195: =E195*F195 -> 3600000
C197: Støttet sum - Inkl. Nedrivning, Miljø og Klimavenlige løsninger, Genhusning, lejetab - excl. nødvendige ustøttede arbejder | D197: bolig | E197: 180 | F197: =IFERROR(H197/E197,0) -> 306941.266 | H197: =+J185+L185+N185+P185+SUM(H192:H195) -> 55249427.89
C200: Samlede udgifter - ustøttede arbejder | D200: bolig | E200: =E197 -> 180 | F200: =IFERROR(H200/E200,0) -> 496416.0337 | H200: =+R185+T185 -> 89354886.06
C204: Samlede udgifter - støttede og ustøttede arbejder | D204: bolig | E204: =E197 -> 180 | F204: =IFERROR(H204/E204,0) -> 803357.2997 | H204: =+H197+H200 -> 144604314
B207: Specifikationer til yderligere støttede arbejder
A209: BSF | B209: 40 | C209: Nedrivning (kun ved fjernelse af bygninger efter aftale med LBF) | D209: Enh. | E209: Antal | F209: Enh.pris inkl. moms | H209: Total inkl. moms
C210: Nedrivning af bygning(er) / boliger | H210: =E210*F210 -> 0 | AK210: =IF($A210=AK$6,+$H210,"") ->  | AL210: =IF($A210=AL$6,+$H210,"") -> 
A211: 10 | C211: 6 boliger fjernes | D211: bolig | E211: 6 | F211: 350000 | H211: =E211*F211 -> 2100000 | AK211: =IF($A211=AK$6,+$H211,"") ->  | AT211: 2100000
A212: 10 | C212: Håndtering af miljøfremmede stoffer | D212: bolig | E212: 6 | F212: 10000 | H212: 60000 | AT212: 60000
A214: 10 | C214: Oprydning af grund | D214: bolig | E214: 6 | F214: 40000 | H214: 240000 | AT214: 240000
C215: Andel af byggeplads og omkostninger | H215: =(H210+H211+H212+H213+H214)*($D$179+$D$182) -> 600000
C216: SUM | H216: =SUM(H210:H215) -> 3000000
A218: BSF | B218: 41 | C218: Miljø og Klimavenlige løsninger (Bæredygtighedspulje efter ansøgning) | D218: Enh. | E218: Antal | F218: Enh.pris inkl. moms | H218: Total inkl. moms
C219: Beskrivelse | H219: =E219*F219 -> 0 | AK219: =IF($A219=AK$6,+$H219,"") -> 
C220: xxxxxxxxxxxxxxxxxxxxx | H220: =E220*F220 -> 0
C221: xxxxxxxxxxxxxxxxxxxxxxxxx | H221: 0
C222: xxxxxxxxxxxxxxxxxxx | H222: 0
C223: xxxxxxxxxxxxxxxxxxxxxxxxx | H223: 0
C224: Andel af byggeplads og omkostninger | H224: =(H219+H220+H221+H222+H223)*($D$179+$D$182) -> 0
C225: SUM | H225: =SUM(H219:H224) -> 0
B227: Støttede arbejder
B229: Håndværkerudgifter fordelt på bygningsdele (til Bossinf Skema A)
B231: =AK5&" I ALT:" -> BSF-håndværkerudgifter I ALT:
C232: =AV4 -> 33753597.5
B234: 1 | C234: Tag | D234: =$AK$4 -> 6131587.5
B235: 2 | C235: Ydervægge | D235: =$AL$4 -> 1965580
B236: 3 | C236: Døre og vinduer | D236: =$AM$4 -> 469670
B237: 4 | C237: Altaner og altangange | D237: =$AN$4 -> 1098000
... 26 more rows
